Cogmind - Beta 12 @@@ ROGUE MODE // 2024.01.10 @ 02:08:23 Player: DreamAR Result: Exoskeleton Destroyed Performance ------------- Evolutions (9) 4500 Regions Visited (34) 6800 Robots Destroyed (232) 1160 Value Destroyed (13977) 13977 Prototype IDs (108) 2160 Alien Tech Used (12) 2400 Bonus (44647) 44647 TOTAL SCORE: 75644 Bonus ------- Triggered High Security 500 Triggered Max Security 2000 High Alert Combat Kills 5474 Follower Combat Kills 4663 Network Hubs Disabled 800 Met Data Miner 300 Met Imprinter 300 Met Warlord at Base 500 MAIN.C Attacked Warlord 500 Warlord Defense Kills 300 Built Enhanced Grunts 300 A7 Reached Mainframe 300 Met R17 at Cetus 500 Found Hidden Lab 3000 Used Core Reset Matrix 3000 Met R17 at Research 2000 Met Warlord at Research 2000 Invited to Help at Command 2000 Scanned by Researcher 500 Pursued by Intercept 2000 Integrated Exoskeleton 5000 Destroyed MAIN.C Guards 500 Met MAIN.C 5000 Destroyed MAIN.C Shell 5000 Met Warlord at Command 2000 Friendly Fire -3790 Cogmind --------- Core Integrity 0/1600 Matter 84/425 Energy 651/1050 System Corruption 0% Temperature Cool (0) Movement Walking (30) Location -1/Command Parts ------- > --- POWER (1) -------- Improved Quantum Reactor > --- PROPULSION (3) --- Sigix Exoskeleton > --- UTILITY (5) ------ Experimental Power Amplifier Experimental Energy Well Improved Energy Mantle > --- WEAPON (2) ------- Sigix Sheargun Ragnarok Missile Launcher > --- INVENTORY (7) ---- System Shield Modified EM Gauss Rifle Sigix Sheargun Advanced Remote Datajack CR-A16's Behemoth Slayer Peak State ------------ > --- POWER ------------ Improved Quantum Reactor > --- PROPULSION ------- Sigix Exoskeleton > --- UTILITY ---------- Experimental Power Amplifier Advanced Gravity Neutralizer Experimental Phase Shifter Improved Energy Mantle Core Physics Calibrator > --- WEAPON ----------- Sigix Sheargun Sigix Sheargun > --- INVENTORY -------- Advanced Hacking Suite Quantum Router Modified EM Gauss Rifle Ragnarok Missile Launcher Advanced Remote Datajack CR-A16's Behemoth Slayer [Rating: 240] Favorites ----------- Power Light Quantum Reactor Engine Makeshift Power Source Power Core Light Nuclear Core Reactor Light Quantum Reactor Propulsion Improved Gyrokinetic Inverter Treads Light Treads Leg Aluminum Leg Wheel Compact Wheel Hover Unit Improved Gyrokinetic Inverter Flight Unit Nuclear Pulse Thruster Utility Medium Storage Unit Device Long-range Sensor Array Storage Medium Storage Unit Processor Experimental Signal Interpreter Hackware Hacking Suite Protection Centrium Light Armor Plating Artifact Core Physics Calibrator Weapon CR-A16's Behemoth Slayer Energy Gun Vortex Rail Energy Cannon EM Pulse Cannon Ballistic Gun Coil Gun Ballistic Cannon Flak Cannon Launcher Advanced EMP Blaster Special Weapon RU-N14's Throwing Claymores Impact Weapon Makeshift Hammer Slashing Weapon Phasing Sabre Piercing Weapon CR-A16's Behemoth Slayer Special Melee Weapon Advanced Datajack Build | -11 -10 -10 -10 -9 -8 -8 -7 -7 -7 -7 -6 -6 -6 -6 -6 -5 -5 -5 -5 -5 -4 -4 -4 -4 -4 -4 -3 -3 -3 -2 -2 -2 -1 -1 ------- Run | Jun Mat Min Exi Min Mat Sto Fac Low Low Zio Pro Fac Low Low Dat Pro Fac Upp Upp War Pro Fac Ext Cet Arc Hub Res Arm Lab Res Tes Sec Acc Com Slots Evolved 18 | . . . . . 4 . 2 . . . . 2 . . . . 2 . . . . 2 . . . . 2 . . 2 . . 2 . Power 1 | . . . . . 1 . . . . . . . . . . . . . . . . . . . . . . . . . . . . . Propulsion 5 | . . . . . 1 . 2 . . . . . . . . . 1 . . . . . . . . . . . . 1 . . . . Utility 12 | . . . . . 2 . . . . . . 2 . . . . 1 . . . . 2 . . . . 2 . . 1 . . 2 . Weapon . | . . . . . . . . . . . . . . . . . . . . . . . . . . . . . . . . . . . Parts Attached 775 | 9 9 6 . 3 14 22 20 6 3 11 3 35 19 . . 11 19 10 3 52 8 18 18 32 4 27 45 27 14 164 51 88 11 13 Power 93 | 1 2 1 . 1 2 3 5 1 . . 2 4 7 . . . 4 . 1 4 . 2 . . . 3 11 4 4 13 7 11 . . Engine 13 | 1 1 1 . . . 1 . . . . . 2 5 . . . 2 . . . . . . . . . . . . . . . . . Core 26 | . 1 . . 1 2 2 5 1 . . 2 2 2 . . . 2 . 1 2 . . . . . . . . . 1 2 . . . Reactor 54 | . . . . . . . . . . . . . . . . . . . . 2 . 2 . . . 3 11 4 4 12 5 11 . . Propulsion 128 | 4 1 3 . . 3 5 3 . . . . 7 1 . . . 4 3 2 15 2 2 2 2 . 5 10 5 . 38 3 8 . . Treads 10 | 2 . 3 . . . 2 1 . . . . . . . . . . . . . . . . . . . . . . 1 . 1 . . Leg 10 | 2 1 . . . . . . . . . . . . . . . 1 . . 1 . . . . . . 1 . . 4 . . . . Wheel 1 | . . . . . . . . . . . . . . . . . . . . . . . . . . . . . . 1 . . . . Hover 82 | . . . . . 3 3 1 . . . . 1 . . . . . . 1 12 2 2 2 2 . 5 8 5 . 26 2 7 . . Flight 25 | . . . . . . . 1 . . . . 6 1 . . . 3 3 1 2 . . . . . . 1 . . 6 1 . . . Utility 284 | 2 2 1 . 1 5 4 4 3 1 6 . 12 3 . . . 5 2 . 20 2 9 7 17 4 10 17 4 5 65 21 36 6 10 Device 219 | 1 2 . . 1 2 2 2 2 1 4 . 10 2 . . . 4 1 . 14 1 7 6 15 4 8 11 3 4 50 16 33 6 7 Storage 10 | 1 . 1 . . . . . . . 1 . . . . . . . . . . . 1 . . . . . . . 2 1 2 . 1 Processor 18 | . . . . . 1 1 2 . . . . 1 1 . . . 1 1 . 2 . . . . . . . . . 7 1 . . . Hackware 5 | . . . . . . . . . . . . . . . . . . . . . . . . . . . 3 . . . . . . 2 Protection 31 | . . . . . 2 1 . 1 . 1 . 1 . . . . . . . 4 1 1 1 2 . 2 3 1 1 6 3 . . . Artifact 1 | . . . . . . . . . . . . . . . . . . . . . . . . . . . . . . . . 1 . . Weapon 270 | 2 4 1 . 1 4 10 8 2 2 5 1 12 8 . . 11 6 5 . 13 4 5 9 13 . 9 7 14 5 48 20 33 5 3 Energy Gun 84 | 2 4 1 . . . 5 3 1 1 1 . 3 1 . . 2 1 . . 4 4 2 3 3 . 4 . 2 3 11 5 15 2 1 Energy Cannon 16 | . . . . . 2 2 . . . . . 1 . . . . . . . . . . . . . 1 2 . . 3 1 4 . . Ballistic Gun 9 | . . . . . . . . . . . . . . . . . 1 . . 1 . . . . . . . . 2 4 . 1 . . Ballistic Cannon 7 | . . . . 1 . . . . . . . . . . . . . . . 1 . . . . . . 1 . . 2 . 2 . . Launcher 31 | . . . . . 1 3 4 1 . . . 1 . . . . . . . . . . 1 5 . . . 6 . . 3 4 1 1 Special Weapon 31 | . . . . . . . . . . 2 . 3 2 . . 6 4 3 . . . . . . . . . . . 5 5 1 . . Impact Weapon 4 | . . . . . 1 . 1 . 1 1 . . . . . . . . . . . . . . . . . . . . . . . . Slashing Weapon 1 | . . . . . . . . . . . . . . . . . . . . 1 . . . . . . . . . . . . . . Piercing Weapon 64 | . . . . . . . . . . 1 1 4 4 . . 3 . 1 . 3 . 2 3 5 . 3 . 5 . 14 6 6 2 1 Special Melee Weapon 23 | . . . . . . . . . . . . . 1 . . . . 1 . 3 . 1 2 . . 1 4 1 . 9 . . . . Unidentified Prototypes 87 | . . . . . 1 4 5 . 1 3 . 6 . . . . 5 . . 14 . 3 . 1 . 3 6 . 5 17 5 7 . 1 Parts Lost 28 | . 1 . . . . 2 . . . . . . 1 . . . 8 1 . . . . 1 2 . 10 . . . . . . . 2 Power 5 | . . . . . . . . . . . . . . . . . 3 . . . . . . . . 2 . . . . . . . . Propulsion 12 | . . . . . . 1 . . . . . . 1 . . . 4 1 . . . . 1 1 . 3 . . . . . . . . Utility 8 | . . . . . . . . . . . . . . . . . 1 . . . . . . 1 . 4 . . . . . . . 2 Weapon 3 | . 1 . . . . 1 . . . . . . . . . . . . . . . . . . . 1 . . . . . . . . Highest Loss Streak 8 | . 1 . . . . 1 . . . . . . 1 . . . 3 1 . . . . 1 1 . 8 . . . . . . . 2 To Critical Strikes . | . . . . . . . . . . . . . . . . . . . . . . . . . . . . . . . . . . . Average Slot Usage (%) 91 | . 100 100 100 100 90 89 81 95 95 90 85 85 94 100 100 100 91 85 90 93 94 94 94 94 95 92 96 94 86 86 83 81 77 78 Engine 1 | . 5 7 14 . . . . . . . . 1 10 18 18 18 6 5 5 3 . . . . . . . . . . . . . . Core 3 | . 8 6 . 13 12 10 8 10 14 12 7 6 4 . . . 7 5 5 6 . . . . . . . . . . . . . . Reactor 6 | . . . . . . . . . . . . . . . . . . . . 2 11 10 10 10 10 11 12 13 12 11 11 11 9 9 Treads 2 | . . 19 28 28 6 1 . . . . . . . . . . . . . . . . . . . . . . . . . . . . Leg 1 | . 28 8 . . . . . . . . . . . . . . . . . . . . . . . . . . . . . 5 9 9 Hover 17 | . . . . . 18 25 23 30 28 28 28 13 . . . . . . 2 29 33 30 29 29 30 28 24 21 18 19 19 12 . . Flight 4 | . . . . . . . 6 7 7 7 7 15 31 31 31 31 29 24 27 . . . . . . . . . . . . . . . Device 18 | . 14 14 14 14 18 16 10 6 7 6 7 20 18 18 18 18 20 16 16 15 12 19 19 20 20 19 18 22 21 24 19 20 38 35 Storage 6 | . 14 14 14 14 9 9 7 7 7 7 7 6 6 6 6 6 5 5 5 5 5 5 5 5 5 5 4 4 4 4 4 7 . 1 Processor 10 | . . . . . 6 9 10 15 14 12 7 7 11 12 12 12 11 16 16 14 16 15 15 15 15 15 13 13 13 12 12 6 . . Protection 2 | . . . . . 2 1 . . . 1 7 . . . . . . . . 1 3 4 4 5 5 4 4 4 4 3 4 2 . . Energy Gun 7 | . 28 28 28 14 9 9 3 6 6 1 . . 1 6 6 4 . . . 2 9 5 5 5 5 3 . 3 3 4 4 8 16 17 Piercing Weapon 2 | . . . . . . . . . . 2 7 6 3 6 6 5 5 5 5 2 . 4 4 3 5 4 4 3 4 2 3 4 . . Naked Turns . | . . . . . . . . . . . . . . . . . . . . . . . . . . . . . . . . . . . Heaviest Build 124 | 14 15 21 21 26 39 35 43 35 35 36 35 43 38 37 37 37 44 30 32 83 75 74 93 96 86 71 85 101 99 109 115 124 59 61 Greatest Support 118 | 40 20 42 42 42 42 27 36 36 36 36 36 38 38 38 38 38 44 33 33 84 76 76 74 74 72 86 92 100 100 112 112 118 76 76 Greatest Overweight (x) 2 | . . . . . 2 1 1 . . . . 1 . . . . 1 . . 1 . . 1 1 1 1 . 1 . 1 1 1 . 1 Average Overweight (x) . | . . . . . . . . . . . . . . . . . . . . . . . . . . . . . . . . . . . Largest Inventory Capacity 12 | 8 8 10 10 10 10 10 10 10 10 10 10 10 10 10 10 10 10 10 10 10 10 10 10 10 10 10 10 10 10 10 10 12 12 7 Average Capacity 9 | 7 8 9 10 10 10 10 10 10 10 9 10 10 10 10 10 10 10 10 10 10 10 10 10 10 10 10 10 10 10 10 10 10 7 7 Most Carried 12 | 7 8 10 10 10 10 10 10 10 10 10 10 10 10 10 10 10 10 10 10 10 10 10 10 10 10 10 10 10 10 10 10 12 8 7 Average Carried 9 | 5 7 7 10 9 9 9 9 9 9 9 9 9 9 10 10 9 9 8 9 9 9 9 9 9 10 9 9 9 9 9 9 9 6 5 Final Capacity 12 | 8 8 10 10 10 10 10 10 10 10 10 10 10 10 10 10 10 10 10 10 10 10 10 10 10 10 10 10 10 10 10 10 12 7 7 Final Carried 10 | 7 8 10 10 10 10 10 10 10 10 10 10 10 10 10 10 9 10 10 10 10 10 10 10 10 10 7 10 10 10 10 10 9 7 5 Class Distribution -------------------- 28% | Mutant 13% | Scavenger-Scout 12% | Alien-Scout 8% | Alien-Sigix 7% | Sprinter 7% | Scout 4% | Commander-Mutant 4% | Commander-Scout 3% | Scavenger-Sprinter Dominant Class ---------------- Mutant | -10/Materials Mutant | -10/Mines Mutant | -10/Exiles Mutant | -9/Mines Mutant | -8/Materials Mutant | -8/Storage Mutant | -7/Factory Mutant | -7/Lower Caves Mutant | -7/Lower Caves Mutant | -7/Zion Mutant | -6/Proximity Caves Mutant | -6/Factory Sprinter | -6/Lower Caves Sprinter | -6/Lower Caves Sprinter | -6/Data Miner Sprinter | -5/Proximity Caves Sprinter | -5/Factory Scavenger-Sprinter | -5/Upper Caves Scavenger-Sprinter | -5/Upper Caves Commander-Mutant | -5/Warlord Scavenger-Scout | -4/Proximity Caves Scavenger-Scout | -4/Factory Commander-Scout | -4/Extension Scavenger-Scout | -4/Cetus Scavenger-Scout | -4/Archives Scavenger-Scout | -4/Hub_04(d) Hacker-Scout | -3/Research Scout | -3/Armory Alien-Mutant | -3/Lab Alien-Scout | -2/Research Alien-Scout | -2/Testing Alien-Sigix | -2/Section 7 Alien-Sigix | -1/Access Alien-Sigix | -1/Command Resources | -11 -10 -10 -10 -9 -8 -8 -7 -7 -7 -7 -6 -6 -6 -6 -6 -5 -5 -5 -5 -5 -4 -4 -4 -4 -4 -4 -3 -3 -3 -2 -2 -2 -1 -1 ----------- Run | Jun Mat Min Exi Min Mat Sto Fac Low Low Zio Pro Fac Low Low Dat Pro Fac Upp Upp War Pro Fac Ext Cet Arc Hub Res Arm Lab Res Tes Sec Acc Com Matter Collected 8122 | 175 185 88 . 61 185 255 48 84 181 41 101 174 261 . . 138 267 115 46 505 100 150 210 504 50 210 508 521 125 865 252 1189 213 315 Remotely 22 | . . . . . . . . . . . . . . . . . . . . . . . . . . . . . . 22 . . . . Salvage Created 11213 | 86 331 139 . 66 174 816 48 . . . 252 406 135 . . 204 558 54 . 163 89 620 797 235 81 414 714 611 51 194 497 1590 367 1521 Parts 492 | 13 13 4 . 7 12 28 1 . . . 14 12 8 . . 9 25 4 . 2 5 43 32 14 3 23 22 26 1 13 23 68 20 47 Haulers Intercepted 8 | . 1 . . . . . 1 . . . . 1 . . . . 2 . . . . 2 . . . 1 . . . . . . . . Recyclers Shooed 4 | . 1 . . . . . . . . . . . . . . . . . . . . 2 . . . . . . . . 1 . . . Parts Field Recycled . | . . . . . . . . . . . . . . . . . . . . . . . . . . . . . . . . . . . Retrieved Matter . | . . . . . . . . . . . . . . . . . . . . . . . . . . . . . . . . . . . Parts Self-Destructed 43 | . . . . . . . . . . . 9 . 8 . . 7 . 3 11 . 5 . . . . . . . . . . . . . Prevented 2 | . . . . . . . . . . . . . . . . . . . . . 2 . . . . . . . . . . . . . Kills | -11 -10 -10 -10 -9 -8 -8 -7 -7 -7 -7 -6 -6 -6 -6 -6 -5 -5 -5 -5 -5 -4 -4 -4 -4 -4 -4 -3 -3 -3 -2 -2 -2 -1 -1 ------- Run | Jun Mat Min Exi Min Mat Sto Fac Low Low Zio Pro Fac Low Low Dat Pro Fac Upp Upp War Pro Fac Ext Cet Arc Hub Res Arm Lab Res Tes Sec Acc Com Combat Hostiles Destroyed 163 | . 4 2 . 2 6 10 . . . . 11 4 3 . . 9 11 5 . 3 2 9 8 5 1 2 1 15 1 2 4 26 4 13 Melee 26 | . . . . . . . . . . . . . 1 . . . 2 . . . . . 6 . 1 2 . 1 1 2 2 8 . . Guns 34 | . 4 2 . . 2 1 . . . . . . . . . . . . . 1 2 5 . 1 . . . 3 . . 1 3 . 9 Cannons 12 | . . . . 2 . . . . . . 3 1 . . . 3 2 . . . . . . . . . . . . . . 1 . . AOE 80 | . . . . . 4 7 . . . . 8 3 1 . . 6 7 5 . 2 . 4 . 4 . . . 11 . . 1 12 2 3 Classes Destroyed 22 | 1 4 . . 1 1 4 . . . . 1 3 1 . . . 1 . . . . . . . . . . 1 . . 1 . 1 2 Worker 10 | . . . . . . . . . . . . . . . . . 3 . . . . 2 . . . 1 2 . . . . . 1 1 Builder 8 | . . . . . 1 1 . . . . . . . . . . 1 . . . . 2 . . . 1 . . . . 1 . 1 . Tunneler 4 | 4 . . . . . . . . . . . . . . . . . . . . . . . . . . . . . . . . . . Hauler 8 | . 1 . . . . . 1 . . . . 1 . . . . 2 . . . . 2 . . . 1 . . . . . . . . Recycler 12 | . 1 . . . 1 1 . . . . . 2 . . . . 1 . . . . 1 . . . . 4 . . . . . . 1 Mechanic 4 | . . . . . . 1 . . . . . . . . . . . . . . . . . . . . . . . . . 3 . . Drone 2 | . . . . . . . . . . . . 1 . . . . . . . 1 . . . . . . . . . . . . . . Watcher 15 | . 1 . . . . 1 . . . . . 1 . . . . 2 . . . . 1 1 1 . 3 . . . . . 2 . 2 Swarmer 34 | . . . . 2 4 . . . . . 5 . 2 . . 5 5 4 . . . 7 . . . . . . . . . . . . Cutter 1 | . . . . . . . . . . . . . . . . . . . . . . . . . . . . . . . . . . 1 Saboteur 4 | . . . . . . . . . . . 1 . . . . . 1 . . . . . . . . . . 1 . . . 1 . . Grunt 36 | . 4 3 . 1 2 5 . . . . 5 2 . . . 4 2 . . 3 . . 1 . . . . 3 . . 1 . . . Brawler 3 | . . . . . . 3 . . . . . . . . . . . . . . . . . . . . . . . . . . . . Duelist 4 | . . . . . . 1 . . . . . . . . . . . . . . . . . . . . . 3 . . . . . . Researcher 2 | . . . . . . . . . . . . . . . . . . . . . . . . . . . . . . . 2 . . . Sentry 13 | . . . . . . . . . . . . 1 . . . . 1 . . . . . 3 . 1 1 . . . 2 1 . 2 1 Specialist 2 | . . . . . . . . . . . . . . . . . . . . . . . . . . . . 2 . . . . . . Hunter 10 | . . . . . . 1 . . . . . . . . . . 2 1 . . 2 . . 2 . 1 . . . . . 1 . . Programmer 20 | . . . . . . . . . . . . 1 . . . . . . . . . 2 1 1 . . . 6 . . 3 6 . . Behemoth 9 | . . . . . . . . . . . . . 1 . . . . . . . . . 2 . . . 1 . . . . 2 2 1 Cetus Guard 2 | . . . . . . . . . . . . . . . . . . . . . . . . 2 . . . . . . . . . . S7 Guard 3 | . . . . . . . . . . . . . . . . . . . . . . . . . . . . . . . . 3 . . M Guard 2 | . . . . . . . . . . . . . . . . . . . . . . . . . . . . . . . . . . 2 M Shell/Atk 2 | . . . . . . . . . . . . . . . . . . . . . . . . . . . . . . . . . . 2 M Shell/Def 3 | . . . . . . . . . . . . . . . . . . . . . . . . . . . . . . . . . . 3 Enhanced Grunt 1 | . . . . . . . . . . . . . . . . . . . . . . . . 1 . . . . . . . . . . Tracker 8 | . . . . . . . . . . . . . . . . . . . . . . . . . . . . . . . . 8 . . Combat Programmer 7 | . . . . . . . . . . . . . . . . . . . . . . . . . . . . . . . . 5 . 2 Assembled 5 | . . . . . . . . . . . . . . . . . . . . . . . . . . . . . . . . . 1 4 Thug 2 | . . . . . . 1 . . . . . . . . . . . . . . . . 1 . . . . . . . . . . . Butcher 1 | . . . . . . . . . . . . . . . . . . . . . . . 1 . . . . . . . . . . . Best Kill Streak 9 | 2 3 1 . 2 8 9 1 . . . 7 3 1 . . 5 7 4 . 3 2 7 3 3 1 2 2 4 1 1 2 7 4 6 Combat Bots Only 7 | . 2 1 . 2 6 7 . . . . 7 2 1 . . 5 5 4 . 3 2 6 3 2 1 1 1 4 1 1 1 6 3 5 Max Kills in Single Turn 6 | 1 1 1 . 2 3 3 1 . . . 4 3 1 . . 4 6 4 . 1 1 4 1 2 1 1 1 3 1 1 1 2 2 2 Gunslinging . | . . . . . . . . . . . . . . . . . . . . . . . . . . . . . . . . . . . Exploded 5 | . . . . . 2 3 . . . . 4 2 1 . . 3 5 4 . 1 . 3 . 1 . . . 3 . . 1 2 2 1 Melee 1 | . . . . . . . . . . . . . 1 . . . 1 . . . . . 1 . 1 1 . 1 1 1 1 1 . . Uniques/NPCs Destroyed 2 | . . . . . . . . . . . . . . . . . . . . . . . . . . . . . 1 . . . . 1 A5 (-3/Lab) MAIN.C Shell (-1/Command) Combat | -11 -10 -10 -10 -9 -8 -8 -7 -7 -7 -7 -6 -6 -6 -6 -6 -5 -5 -5 -5 -5 -4 -4 -4 -4 -4 -4 -3 -3 -3 -2 -2 -2 -1 -1 -------- Run | Jun Mat Min Exi Min Mat Sto Fac Low Low Zio Pro Fac Low Low Dat Pro Fac Upp Upp War Pro Fac Ext Cet Arc Hub Res Arm Lab Res Tes Sec Acc Com Damage Taken 14727 | . 311 98 . 84 81 303 44 . . . 88 140 363 15 . 150 350 58 . 143 231 226 618 388 12 1018 71 697 64 110 1027 3357 424 4256 Core 3020 | . 91 36 . 16 8 28 . . . . . 35 80 . . 32 87 34 . 21 46 40 39 65 . 57 . 48 . 3 98 676 119 1361 Absorbed by Shields 6215 | . . . . . . . 16 . . . . . . . . . . . . 13 80 132 12 237 11 . 42 291 62 102 341 2527 365 1984 Regen/Repaired (Parts) 4109 | . . . . . . . . . . . . . . . . . . . . . . 76 . . . . 67 . 26 58 467 3415 . . Core Remaining (%) 79 | 100 . . . 42 . 93 . . . . 100 . . . . 82 . . . . 81 . . . . 82 . . 96 . . 41 . . Volleys Fired 651 | 7 30 14 . 4 7 16 . . . 1 5 15 8 . . 5 10 3 . 11 5 16 9 14 3 13 . 44 . 57 75 123 31 125 Largest 2 | 2 2 2 . 2 2 2 . . . 1 1 1 1 . . 2 1 1 . 1 2 1 2 2 1 1 . 2 . 1 2 2 2 2 Hottest 200 | 80 90 90 . 107 126 112 . . . 69 . 60 60 . . . . . . 45 130 45 130 130 65 45 . 114 . 40 105 200 200 200 Shots Fired 970 | 14 59 29 . 8 14 32 . . . 1 5 15 8 . . 8 10 3 . 11 10 16 10 24 3 13 . 55 . 58 85 168 62 249 Gun 822 | 14 59 29 . 4 7 22 . . . 1 . 6 7 . . . . . . 11 10 16 10 13 3 13 . 42 . 54 79 127 57 238 Cannon 31 | . . . . 4 2 . . . . . . . . . . . . . . . . . . . . . . . . . . 25 . . Launcher 72 | . . . . . 5 10 . . . . . . . . . . . . . . . . . 11 . . . 13 . . 2 15 5 11 Special 45 | . . . . . . . . . . . 5 9 1 . . 8 10 3 . . . . . . . . . . . 4 4 1 . . Kinetic 5 | . . . . 4 . . . . . . . . . . . . . . . 1 . . . . . . . . . . . . . . Thermal 186 | 7 33 14 . 4 7 22 . . . 1 . . . . . . . . . . 3 . 2 13 3 . . 42 . . 10 25 . . Explosive 98 | . . . . . 5 . . . . . 5 9 1 . . 8 10 3 . . . . . 11 . . . 13 . . 2 15 5 11 Electromagnetic 261 | 7 26 15 . . 2 10 . . . . . 6 7 . . . . . . . . . . . . . . . . 54 69 65 . . Slashing 357 | . . . . . . . . . . . . . . . . . . . . . . . . . . . . . . . . 62 57 238 Entropic 54 | . . . . . . . . . . . . . . . . . . . . 10 7 16 8 . . 13 . . . . . . . . Robot Hit Streak 15 | 5 8 5 . 4 8 5 . . . . 5 11 1 . . 1 9 10 . 4 2 3 4 5 2 . . 5 . 8 10 15 6 15 Robot Miss Streak 15 | 1 4 15 . 11 1 2 . . . . . 1 5 . . 1 . . . 2 2 2 2 5 1 . . 5 . 3 7 7 2 4 Penetration Max 2 | . . . . . . . . . . . . . . . . . . . . 1 . 2 . . . . . . . 1 2 2 . 1 Secondary Targets 3 | . . . . . . . . . . . . . . . . . . . . . 1 . . . . . . . . . . . . 2 Max Gunslinging Chain 1 | . . . . . . . . . . . . . . . . . . . . . 1 . . . . . . . . . . . . 1 Shots Hit Robots 653 | 10 34 10 . 5 10 19 3 . . . 4 13 7 . . 2 22 9 2 17 6 16 35 11 3 10 10 23 2 57 64 96 20 133 Core Hits 500 | 4 15 5 . 7 10 30 . . . . 12 14 4 . . 11 28 7 . 8 4 39 10 33 2 10 6 38 2 9 34 70 16 72 Critical Kills . | . . . . . . . . . . . . . . . . . . . . . . . . . . . . . . . . . . . Critical Parts Destroyed 4 | . . . . . . . . . . . . . . . . . . . . 3 . 1 . . . . . . . . . . . . Critical Strikes 59 | . 1 1 . . . 3 . . . . . 2 . . . . 8 1 1 6 . 4 4 . 1 2 4 2 1 4 4 10 . . Burn 4 | . . 1 . . . 3 . . . . . . . . . . . . . . . . . . . . . . . . . . . . Corrupt 1 | . 1 . . . . . . . . . . . . . . . . . . . . . . . . . . . . . . . . . Sever 8 | . . . . . . . . . . . . 2 . . . . 4 1 . . . . . . . . . . . . . 1 . . Impale 42 | . . . . . . . . . . . . . . . . . 4 . 1 3 . 3 4 . 1 2 4 2 1 4 4 9 . . Detonate 4 | . . . . . . . . . . . . . . . . . . . . 3 . 1 . . . . . . . . . . . . Melee Attacks 403 | . . . . . 2 . 14 . 1 1 . 12 24 . . 2 30 12 4 10 . 17 38 4 1 44 21 24 8 24 19 88 2 1 Impact 18 | . . . . . 2 . 14 . 1 1 . . . . . . . . . . . . . . . . . . . . . . . . Slashing . | . . . . . . . . . . . . . . . . . . . . . . . . . . . . . . . . . . . Piercing 347 | . . . . . . . . . . . . 12 24 . . 2 30 5 4 4 . 16 27 4 1 42 21 24 8 13 19 88 2 1 Sneak Attacks 82 | . . . . . . . 1 . . . . 1 . . . . 5 7 . 7 . 6 12 . 1 5 8 . . 20 4 4 . 1 Combat Hostiles 20 | . . . . . . . . . . . . . . . . . 1 2 . . . . . . 1 2 . . . 9 . 4 . 1 Follow-up Attacks . | . . . . . . . . . . . . . . . . . . . . . . . . . . . . . . . . . . . Damage Inflicted 44356 | 123 491 186 . 96 472 1645 157 . . . 1148 1089 343 . . 883 3335 762 61 1230 226 2069 948 1743 187 865 676 2364 172 635 1310 6854 1896 12390 Guns 15849 | 123 462 186 . 18 82 220 . . . . . 157 21 . . . . . . 461 226 543 209 222 62 50 . 483 . 39 260 932 794 10299 Cannons 507 | . . . . 78 72 . . . . . . . . . . . . . . . . . . . . . . . . . . 357 . . Explosions 18601 | . 29 . . . 318 1425 . . . . 1001 612 96 . . 774 2189 670 . 365 . 856 . 1521 . 55 . 1738 . . 258 3623 1102 1969 Melee 8414 | . . . . . . . 157 . . . . 60 226 . . . 843 48 61 404 . 670 739 . 125 760 676 143 172 596 792 1942 . . Ramming 122 | . . . . . . . . . . . . . . . . . . . . . . . . . . . . . . . . . . 122 Kinetic 78 | . . . . 78 . . . . . . . . . . . . . . . . . . . . . . . . . . . . . . Thermal 3089 | 55 273 102 . 18 82 447 . . . . . . . . . . 401 . . 268 29 38 58 222 62 . . 483 . . 194 357 . . Explosive 16052 | . . . . . 318 . . . . . 1001 612 96 . . 774 1788 670 . . . 662 . 1521 . . . 1738 . . 178 3623 1102 1969 Electromagnetic 2332 | 68 218 84 . . 72 1198 . . . . . 157 21 . . . . . . 97 . 156 . . . 55 . . . 39 146 21 . . Impact 157 | . . . . . . . 157 . . . . . . . . . . . . . . . . . . . . . . . . . . . Slashing 12867 | . . . . . . . . . . . 147 260 . . . 109 303 44 . . . . . . . . . . . . . 911 794 10299 Piercing 8257 | . . . . . . . . . . . . 60 226 . . . 843 48 61 404 . 670 739 . 125 760 676 143 172 596 792 1942 . . Entropic 1402 | . . . . . . . . . . . . . . . . . . . . 461 197 543 151 . . 50 . . . . . . . . Highest Corruption 6 | . 1 1 1 1 . . . . . . . 1 1 1 1 1 3 3 3 3 . . 1 1 1 3 . 6 6 1 4 4 . . Average Corruption 1 | . 1 1 1 1 . . . . . . . 1 1 1 1 1 3 3 3 3 . . 1 1 1 1 . 3 2 1 2 4 . . Corruption Purged . | . . . . . . . . . . . . . . . . . . . . . . . . . . . . . . . . . . . Corruption Blocked 55 | . . . . . . . . . . . . . . . . . . . . . . . . . . . . . . 15 20 20 . . Effects 135 | . 1 8 2 6 . . . . . . . 2 2 2 . 2 1 4 5 . . . 5 6 1 11 . 20 2 2 14 39 . . Message Errors 38 | . 1 1 . 3 . . . . . . . 2 . 1 . 1 . 1 2 . . . 3 2 . 3 . 5 2 . 5 6 . . Matter Fused 32 | . . 2 . . . . . . . . . . 1 1 . 1 1 2 1 . . . . 1 . 1 . 2 . 1 3 15 . . Heat Flow Errors 17 | . . 2 1 . . . . . . . . . . . . . . . . . . . . 2 . 2 . 4 . . . 6 . . Energy Discharges 15 | . . 1 1 . . . . . . . . . . . . . . . 1 . . . . . . 2 . 3 . . 3 4 . . Parts Rejected 1 | . . . . . . . . . . . . . . . . . . . . . . . . . . . . 1 . . . . . . Parts Fused 5 | . . . . 1 . . . . . . . . 1 . . . . . 1 . . . . . . 1 . 1 . . . . . . Data Loss (minor) 12 | . . 1 . 1 . . . . . . . . . . . . . 1 . . . . 2 1 1 1 . . . . 2 2 . . Data Loss (major) 3 | . . . . 1 . . . . . . . . . . . . . . . . . . . . . . . . . . . 2 . . Misfires 8 | . . 1 . . . . . . . . . . . . . . . . . . . . . . . . . 3 . 1 1 2 . . Alerts 2 | . . . . . . . . . . . . . . . . . . . . . . . . . . 1 . . . . . 1 . . Weapon Failures 2 | . . . . . . . . . . . . . . . . . . . . . . . . . . . . 1 . . . 1 . . Overload Shots . | . . . . . . . . . . . . . . . . . . . . . . . . . . . . . . . . . . . Overflow Damage 2125 | . . . . . 9 38 17 . . . 88 65 . . . 37 332 18 . 429 . 145 127 33 . 129 . 15 . . 336 281 . 26 Projectiles 49 | . . . . . 9 . . . . . . 29 . . . . . . . . . . . . . . . . . . . 11 . . Explosions 724 | . . . . . . 38 . . . . 88 6 . . . 37 144 18 . . . 78 . 33 . 8 . 15 . . 54 205 . . Melee 1352 | . . . . . . . 17 . . . . 30 . . . . 188 . . 429 . 67 127 . . 121 . . . . 282 65 . 26 Knockbacks 4 | . . . . 2 . . . . . . . . . . . . . . . . . . . . . . . . . . . . . 2 Impact 2 | . . . . . . . . . . . . . . . . . . . . . . . . . . . . . . . . . . 2 Kinetic 2 | . . . . 2 . . . . . . . . . . . . . . . . . . . . . . . . . . . . . . Secondary . | . . . . . . . . . . . . . . . . . . . . . . . . . . . . . . . . . . . Self-Inflicted Damage 680 | . . . . . . 9 . . . . . . . . . . . . . . . 58 . 30 . 81 . 127 . . . 278 . 97 Shots 19 | . . . . . . 1 . . . . . . . . . . . . . . . 1 . 1 . 1 . 4 . . . 9 . 2 Rammed . | . . . . . . . . . . . . . . . . . . . . . . . . . . . . . . . . . . . Targets Rammed 4 | . . . . . . . . . . . . . . . . . . . . . . . . . . . . . . . . . . 4 Kicked 4 | . . . . . . . . . . . . . . . . . . . . . . . . . . . . . . . . . . 4 Crushed . | . . . . . . . . . . . . . . . . . . . . . . . . . . . . . . . . . . . Highest Temperature 440 | 54 347 210 127 189 . 117 440 . . 41 . 12 29 . . . 3 4 4 253 18 2 33 285 44 335 27 260 17 3 16 256 . . Average Temperature 50 | 20 113 75 71 97 . 43 258 . . 21 . 5 15 . . . 2 2 2 59 7 2 12 56 11 70 2 51 11 3 8 63 . . Received Heat Transfer 1466 | . 168 30 . 9 9 162 25 . . . 18 18 60 . . 18 81 . . 27 . 10 58 24 . 219 . 10 . 8 20 144 100 248 Effects 7 | . 1 . . . . . . . . . . . . . . . . . . 1 . . . 1 . 4 . . . . . . . . Energy Bleed 1 | . . . . . . . . . . . . . . . . . . . . . . . . 1 . . . . . . . . . . Interference 5 | . 1 . . . . . . . . . . . . . . . . . . 1 . . . . . 3 . . . . . . . . Matter Decay 1 | . . . . . . . . . . . . . . . . . . . . . . . . . . 1 . . . . . . . . Siege Activations . | . . . . . . . . . . . . . . . . . . . . . . . . . . . . . . . . . . . Robots Corrupted 2 | . . . . . . 2 . . . . . . . . . . . . . . . . . . . . . . . . . . . . Combat Hostiles 2 | . . . . . . 2 . . . . . . . . . . . . . . . . . . . . . . . . . . . . Parts Fried 6 | . . . . . . 4 . . . . . 2 . . . . . . . . . . . . . . . . . . . . . . Impact Corruptions 3 | . . . . . . . 1 . . . . . . . . . . . . . . . . . . . . . . . . . . 2 Robots Melted . | . . . . . . . . . . . . . . . . . . . . . . . . . . . . . . . . . . . Combat Hostiles . | . . . . . . . . . . . . . . . . . . . . . . . . . . . . . . . . . . . Parts Melted 4 | . 1 2 . . . . . . . . . . . . . . . . . . . . 1 . . . . . . . . . . . Heat Transferred 4159 | 125 612 370 . 37 185 923 . . . . . . . . . . 200 . . 200 37 50 74 241 74 . . 518 . . 217 296 . . Parts Sabotaged . | . . . . . . . . . . . . . . . . . . . . . . . . . . . . . . . . . . . Parts Stolen . | . . . . . . . . . . . . . . . . . . . . . . . . . . . . . . . . . . . Parts Stripped . | . . . . . . . . . . . . . . . . . . . . . . . . . . . . . . . . . . . Power Chain Reactions 6 | . 1 . . . . 3 . . . . . . . . . . . . . . . . . . . . . . . . 2 . . . Missiles Intercepted 5 | . . . . . . . . . . . . . . . . . . . . . . . . . . . . 5 . . . . . . Alert | -11 -10 -10 -10 -9 -8 -8 -7 -7 -7 -7 -6 -6 -6 -6 -6 -5 -5 -5 -5 -5 -4 -4 -4 -4 -4 -4 -3 -3 -3 -2 -2 -2 -1 -1 ------- Run | Jun Mat Min Exi Min Mat Sto Fac Low Low Zio Pro Fac Low Low Dat Pro Fac Upp Upp War Pro Fac Ext Cet Arc Hub Res Arm Lab Res Tes Sec Acc Com Peak Influence 2518 | 20 122 190 . 92 257 497 253 . . . . 462 . . . . 874 . . . . 899 1087 1247 655 1704 896 960 . 64 670 2518 2206 2040 Initial 1510 | . 13 5 . . . 108 198 . . . . 182 . . . . 153 . . . . 300 368 580 498 228 825 283 . . . 162 1510 1411 Average 562 | 7 74 27 . 44 85 334 193 . . . . 265 . . . . 527 . . . . 559 761 984 623 780 721 688 . 14 271 1063 1826 1830 Maximum Alert Level 5 | . . . . . 1 2 1 . . . . 2 . . . . 3 . . . . 3 3 4 2 5 3 3 . . 2 5 5 5 Low Security (%) 36 | 100 100 100 . 100 80 27 87 . . . . 25 . . . . 20 . . . . 2 . . . . . . . 100 46 17 . . Level 1 12 | . . . . . 19 34 12 . . . . 64 . . . . 4 . . . . 43 4 . . 6 . 16 . . 19 30 . . Level 2 17 | . . . . . . 38 . . . . . 9 . . . . 47 . . . . 13 29 5 100 50 52 23 . . 33 6 . . Level 3 19 | . . . . . . . . . . . . . . . . . 27 . . . . 41 66 60 . 19 47 59 . . . . . . Level 4 2 | . . . . . . . . . . . . . . . . . . . . . . . . 34 . 22 . . . . . . 6 4 Level 5 1 | . . . . . . . . . . . . . . . . . . . . . . . . . . 1 . . . . . . . 38 High Security 2 | . . . . . . . . . . . . . . . . . . . . . . . . . . . . . . . . . . 56 Max Security 6 | . . . . . . . . . . . . . . . . . . . . . . . . . . . . . . . . 46 93 . Squads Dispatched 126 | . 1 1 . . 2 4 1 . . . 1 2 . . . . 3 . . . . 6 3 . . 10 2 4 . 7 7 52 15 5 Investigation 11 | . 1 1 . . 1 . . . . . . . . . . . 1 . . . . . 1 . . 5 . . . . . . . 1 Extermination 10 | . . . . . . . . . . . . 1 . . . . . . . . . 2 . . . 1 . 3 . . 2 1 . . Reinforcement 21 | . . . . . 1 2 1 . . . . 1 . . . . 1 . . . . 1 1 . . 2 2 . . 1 2 1 1 4 Assault 66 | . . . . . . 2 . . . . 1 . . . . . 1 . . . . 3 1 . . 2 . 1 . . . 42 13 . Garrison . | . . . . . . . . . . . . . . . . . . . . . . . . . . . . . . . . . . . Intercept 18 | . . . . . . . . . . . . . . . . . . . . . . . . . . . . . . 6 3 8 1 . Searches Triggered 3 | . . . . . . . . . . . . . . . . . . . . . . 1 . . . 1 . 1 . . . . . . Data Miner Redirects 9 | . . . . . . . . . . . . . . . . . . . . . . 2 1 . . 5 . . . . 1 . . . Construction Impeded 3 | . . . . . . 1 . . . . . . . . . . . . . . . 1 . . . . . . . . 1 . . . Haulers Reinforced 3 | . . . . . . . 1 . . . . . . . . . 1 . . . . . . . . . . . . 1 . . . . Active Scanning Responses . | . . . . . . . . . . . . . . . . . . . . . . . . . . . . . . . . . . . Cargo Convoy Interrupts . | . . . . . . . . . . . . . . . . . . . . . . . . . . . . . . . . . . . Stealth | -11 -10 -10 -10 -9 -8 -8 -7 -7 -7 -7 -6 -6 -6 -6 -6 -5 -5 -5 -5 -5 -4 -4 -4 -4 -4 -4 -3 -3 -3 -2 -2 -2 -1 -1 --------- Run | Jun Mat Min Exi Min Mat Sto Fac Low Low Zio Pro Fac Low Low Dat Pro Fac Upp Upp War Pro Fac Ext Cet Arc Hub Res Arm Lab Res Tes Sec Acc Com Distress Signals 39 | . 2 . . . . 3 . . . . . 1 . . . . 2 . . . . . . 2 . 3 9 1 . 6 . 3 . 7 Communications Jammed . | . . . . . . . . . . . . . . . . . . . . . . . . . . . . . . . . . . . Distress Signals . | . . . . . . . . . . . . . . . . . . . . . . . . . . . . . . . . . . . Times Spotted 650 | . 8 9 . 4 14 29 3 1 . . 19 4 6 4 . 8 15 6 1 18 4 14 33 17 1 62 6 34 1 18 28 178 27 78 Peak Tracking Total 40 | . 3 3 . 4 7 9 3 1 . . 7 3 2 4 . 4 5 5 1 10 2 9 6 5 1 18 2 9 1 6 6 40 8 15 Tactical Retreats 43 | . . 1 . . . 2 . . . . 3 . 2 1 . . 2 . . . . 3 1 . . 16 2 6 . . 3 . . 1 Traps | -11 -10 -10 -10 -9 -8 -8 -7 -7 -7 -7 -6 -6 -6 -6 -6 -5 -5 -5 -5 -5 -4 -4 -4 -4 -4 -4 -3 -3 -3 -2 -2 -2 -1 -1 ------- Run | Jun Mat Min Exi Min Mat Sto Fac Low Low Zio Pro Fac Low Low Dat Pro Fac Upp Upp War Pro Fac Ext Cet Arc Hub Res Arm Lab Res Tes Sec Acc Com Traps Triggered 16 | . 2 . . . . . . . . . . . . . . . . . . . . 1 4 . . . 3 2 . . 1 1 . 2 Indirectly . | . . . . . . . . . . . . . . . . . . . . . . . . . . . . . . . . . . . Trap Hack Attempts 49 | . . . . . . . . . . . . . . . . . . . . . . 12 . . . . 31 6 . . . . . . Triggered . | . . . . . . . . . . . . . . . . . . . . . . . . . . . . . . . . . . . Disarmed . | . . . . . . . . . . . . . . . . . . . . . . . . . . . . . . . . . . . Reprogrammed 12 | . 4 . . . . . . . . . . . . . . . . . . . . 4 . . . . 1 3 . . . . . . Reused 2 | . . . . . . . . . . . . . . . . . . . . . . . . . . . . 2 . . . . . . Traps Extracted . | . . . . . . . . . . . . . . . . . . . . . . . . . . . . . . . . . . . Installed . | . . . . . . . . . . . . . . . . . . . . . . . . . . . . . . . . . . . Triggered 15 | . . . . . 1 . . . . . . . 1 1 . . . . . 9 1 . . . . . . 2 . . . . . . Machines | -11 -10 -10 -10 -9 -8 -8 -7 -7 -7 -7 -6 -6 -6 -6 -6 -5 -5 -5 -5 -5 -4 -4 -4 -4 -4 -4 -3 -3 -3 -2 -2 -2 -1 -1 ---------- Run | Jun Mat Min Exi Min Mat Sto Fac Low Low Zio Pro Fac Low Low Dat Pro Fac Upp Upp War Pro Fac Ext Cet Arc Hub Res Arm Lab Res Tes Sec Acc Com Machines Disabled 88 | . . 1 . . . 1 . . . . 1 4 . . . . 8 1 . . . 10 3 5 . 8 . 8 1 . 5 22 5 5 Max in Single Turn 4 | . . . . . . 1 . . . . 1 1 . . . . 4 1 . . . 3 1 2 . 3 . 1 1 . 4 3 1 2 Garrison Access 5 | . . . . . . . . . . . . . . . . . . . . . . 2 . . . 1 1 . . . . . 1 . Phase Generator 1 | . . . . . . . . . . . . . . . . . . . . . . . . . . . . . . . . . . 1 Network Hub 4 | . . . . . . . . . . . . . . . . . . . . . . . . . . 4 . . . . . . . . Machines Repaired 3 | . . . . . . . . . . . . . . . . . . . . . . . . . . 3 . . . . . . . . Machines Sabotaged . | . . . . . . . . . . . . . . . . . . . . . . . . . . . . . . . . . . . Overloaded Fab Kills . | . . . . . . . . . . . . . . . . . . . . . . . . . . . . . . . . . . . Hacking | -11 -10 -10 -10 -9 -8 -8 -7 -7 -7 -7 -6 -6 -6 -6 -6 -5 -5 -5 -5 -5 -4 -4 -4 -4 -4 -4 -3 -3 -3 -2 -2 -2 -1 -1 --------- Run | Jun Mat Min Exi Min Mat Sto Fac Low Low Zio Pro Fac Low Low Dat Pro Fac Upp Upp War Pro Fac Ext Cet Arc Hub Res Arm Lab Res Tes Sec Acc Com Machines Accessed 104 | . 5 2 1 1 2 2 2 1 2 . . 7 2 . 4 . 8 1 1 2 . 16 3 1 1 11 8 6 2 2 5 5 . 1 Terminals 58 | . 5 1 . . 2 2 1 . . . . 4 1 . . . 3 1 . . . 8 3 1 . 10 3 3 . 2 2 5 . 1 Fabricators 5 | . . . . . . . . . . . . . . . . . 1 . . . . 2 . . . . . 2 . . . . . . Repair Stations 7 | . . . . . . . . . . . . 1 . . . . . . . . . 2 . . . . 3 . . . 1 . . . Recycling Units 7 | . . . . . . . . . . . . . . . . . 3 . . . . 2 . . . . 1 1 . . . . . . Scanalyzers 5 | . . . . . . . 1 . . . . 1 . . . . 1 . . . . . . . . . . . . . 2 . . . Garrison Access 5 | . . . . . . . . . . . . 1 . . . . . . . . . 2 . . . 1 1 . . . . . . . Total Hacks 365 | . 15 3 1 1 6 2 5 1 8 . . 12 3 . 29 . 15 1 1 3 . 45 3 2 25 39 21 35 20 4 26 35 . 4 Successful 234 | . 9 3 1 1 5 2 3 1 8 . . 5 3 . 29 . 7 1 1 3 . 29 . . 25 22 13 13 20 . 6 23 . 1 Failed 131 | . 6 . . . 1 . 2 . . . . 7 . . . . 8 . . . . 16 3 2 . 17 8 22 . 4 20 12 . 3 Catastrophic 29 | . 1 . . . . . . . . . . 3 . . . . 1 . . . . 4 2 1 . 4 1 5 . 1 2 2 . 2 Database Lockouts . | . . . . . . . . . . . . . . . . . . . . . . . . . . . . . . . . . . . Manual 120 | . 9 . . . 6 . 1 . . . . 3 . . . . 7 . . 1 . 18 4 1 3 32 6 18 . 4 . 7 . . Terminals 196 | . 15 2 . . 6 2 2 . . . . 5 2 . . . 7 1 . . . 25 3 2 . 38 13 18 . 4 12 35 . 4 Fabricators 15 | . . . . . . . . . . . . . . . . . 3 . . . . 5 . . . . . 7 . . . . . . Repair Stations 21 | . . . . . . . . . . . . 3 . . . . . . . . . 6 . . . . 6 . . . 6 . . . Recycling Units 20 | . . . . . . . . . . . . . . . . . 3 . . . . 6 . . . . 1 10 . . . . . . Scanalyzers 15 | . . . . . . . 3 . . . . 2 . . . . 2 . . . . . . . . . . . . . 8 . . . Garrison Access 7 | . . . . . . . . . . . . 2 . . . . . . . . . 3 . . . 1 1 . . . . . . . Terminal Hacks 159 | . 7 3 1 1 3 2 1 1 8 . . 2 3 . 29 . . 1 1 3 . 9 . . 25 5 4 6 20 . 1 22 . 1 Record 85 | . . . 1 . . . . . 7 . . 1 2 . 11 . . 1 . 2 . 3 . . 25 . 1 . 20 . . 11 . . Part Schematic 11 | . . . . . 1 . . . . . . . . . 10 . . . . . . . . . . . . . . . . . . . Robot Schematic 5 | . . . . . . . . . . . . . . . 5 . . . . . . . . . . . . . . . . . . . Robot Analysis 1 | . . . . . . . . . . . . . . . . . . . . . . . . . . . . 1 . . . . . . Prototype ID Bank 3 | . . . . . . . . . . . . . . . 3 . . . . . . . . . . . . . . . . . . . Open Door 14 | . . 1 . 1 . 2 . 1 1 . . . 1 . . . . . 1 1 . 1 . . . . . 1 . . 1 2 . . Open DSF 3 | . . . . . . . . . . . . 1 . . . . . . . . . 1 . . . . 1 . . . . . . . Branch Access Points 4 | . . . . . . . . . . . . . . . . . . . . . . 1 . . . 1 1 1 . . . . . . Emergency Access Points 1 | . . . . . . . . . . . . . . . . . . . . . . . . . . . . 1 . . . . . . Repair Station Index 1 | . . . . . . . . . . . . . . . . . . . . . . . . . . . 1 . . . . . . . Alert Level 3 | . 3 . . . . . . . . . . . . . . . . . . . . . . . . . . . . . . . . . Locate Traps 4 | . . . . . 1 . . . . . . . . . . . . . . . . 1 . . . 1 . 1 . . . . . . Reprogram Traps 2 | . 1 . . . . . . . . . . . . . . . . . . . . 1 . . . . . . . . . . . . Dispatch Records 1 | . . 1 . . . . . . . . . . . . . . . . . . . . . . . . . . . . . . . . Assault Status 1 | . . . . . . . . . . . . . . . . . . . . . . 1 . . . . . . . . . . . . Recall Investigation 2 | . 1 1 . . . . . . . . . . . . . . . . . . . . . . . . . . . . . . . . Recall Extermination 1 | . . . . . . . . . . . . . . . . . . . . . . . . . . 1 . . . . . . . . Registered Prototypes 1 | . 1 . . . . . . . . . . . . . . . . . . . . . . . . . . . . . . . . . Zone Layout 6 | . 1 . . . 1 . 1 . . . . . . . . . . . . . . . . . . 2 . 1 . . . . . . Activate Exoskeleton 9 | . . . . . . . . . . . . . . . . . . . . . . . . . . . . . . . . 9 . . Disengage Seal 1 | . . . . . . . . . . . . . . . . . . . . . . . . . . . . . . . . . . 1 Fabricator Hacks 3 | . . . . . . . . . . . . . . . . . 2 . . . . . . . . . . 1 . . . . . . Load Schematic 2 | . . . . . . . . . . . . . . . . . 1 . . . . . . . . . . 1 . . . . . . Build 1 | . . . . . . . . . . . . . . . . . 1 . . . . . . . . . . . . . . . . . Repair Station Hacks 12 | . . . . . . . . . . . . 1 . . . . . . . . . 5 . . . . 4 . . . 2 . . . Scan Component 7 | . . . . . . . . . . . . 1 . . . . . . . . . 3 . . . . 2 . . . 1 . . . Repair 5 | . . . . . . . . . . . . . . . . . . . . . . 2 . . . . 2 . . . 1 . . . Recycling Unit Hacks 7 | . . . . . . . . . . . . . . . . . 3 . . . . 2 . . . . 1 1 . . . . . . Retrieve Components 7 | . . . . . . . . . . . . . . . . . 3 . . . . 2 . . . . 1 1 . . . . . . Scanalyzer 6 | . . . . . . . 2 . . . . 1 . . . . . . . . . . . . . . . . . . 3 . . . Insert Component 4 | . . . . . . . 1 . . . . 1 . . . . . . . . . . . . . . . . . . 2 . . . Analyze 2 | . . . . . . . 1 . . . . . . . . . . . . . . . . . . . . . . . 1 . . . Garrison Access Hacks 2 | . . . . . . . . . . . . . . . . . . . . . . . . . . 1 1 . . . . . . . Seal Access 2 | . . . . . . . . . . . . . . . . . . . . . . . . . . 1 1 . . . . . . . Unauthorized Hacks 45 | . 2 . . . 2 . . . . . . 1 . . . . 2 . . . . 13 . . . 16 3 5 . . . 1 . . Terminals 36 | . 2 . . . 2 . . . . . . 1 . . . . 2 . . . . 7 . . . 16 3 2 . . . 1 . . Assimilate 6 | . . . . . . . . . . . . . . . . . 1 . . . . 2 . . . 2 1 . . . . . . . Botnet 22 | . 2 . . . 2 . . . . . . 1 . . . . 1 . . . . 3 . . . 8 2 2 . . . 1 . . Detonate 3 | . . . . . . . . . . . . . . . . . . . . . . 1 . . . 2 . . . . . . . . Operators 1 | . . . . . . . . . . . . . . . . . . . . . . 1 . . . . . . . . . . . . Sabotage 4 | . . . . . . . . . . . . . . . . . . . . . . . . . . 4 . . . . . . . . Fabricators 5 | . . . . . . . . . . . . . . . . . . . . . . 3 . . . . . 2 . . . . . . Liberate 2 | . . . . . . . . . . . . . . . . . . . . . . 1 . . . . . 1 . . . . . . Fabnet 2 | . . . . . . . . . . . . . . . . . . . . . . 1 . . . . . 1 . . . . . . Haulers 1 | . . . . . . . . . . . . . . . . . . . . . . 1 . . . . . . . . . . . . Repair Stations . | . . . . . . . . . . . . . . . . . . . . . . . . . . . . . . . . . . . Recycling Units 4 | . . . . . . . . . . . . . . . . . . . . . . 3 . . . . . 1 . . . . . . Monitor 2 | . . . . . . . . . . . . . . . . . . . . . . 1 . . . . . 1 . . . . . . Recyclers 1 | . . . . . . . . . . . . . . . . . . . . . . 1 . . . . . . . . . . . . Mask 1 | . . . . . . . . . . . . . . . . . . . . . . 1 . . . . . . . . . . . . Scanalyzers . | . . . . . . . . . . . . . . . . . . . . . . . . . . . . . . . . . . . Garrison Access . | . . . . . . . . . . . . . . . . . . . . . . . . . . . . . . . . . . . Data Cores Recovered 1 | . . . . . . . . . . . . . . . . . . . . . . . . . . 1 . . . . . . . . Used 1 | . . . . . . . . . . . . . . . . . . . . . . . . . . 1 . . . . . . . . Hacking Detections 72 | . 5 1 . . 2 2 2 . . . . 6 . . . . 6 1 . . . 14 3 1 . 9 5 5 . 2 5 3 . . Full Trace Events 3 | . 1 . . . . . . . . . . . . . . . 1 . . . . . . . . 1 . . . . . . . . Feedback Events . | . . . . . . . . . . . . . . . . . . . . . . . . . . . . . . . . . . . Feedback Blocked . | . . . . . . . . . . . . . . . . . . . . . . . . . . . . . . . . . . . Robot Schematics Acquired 10 | . . . . . . . . . . 3 . . . . 5 . . . . . . . . . . . . . . . 2 . . . Robots Built . | . . . . . . . . . . . . . . . . . . . . . . . . . . . . . . . . . . . Authchips . | . . . . . . . . . . . . . . . . . . . . . . . . . . . . . . . . . . . Time . | . . . . . . . . . . . . . . . . . . . . . . . . . . . . . . . . . . . Total Robot Build Rating . | . . . . . . . . . . . . . . . . . . . . . . . . . . . . . . . . . . . Part Schematics Acquired 40 | . . . . . 1 . 1 . . 16 . . . . 10 . . . . . . . . . . . . . . . 6 6 . . Parts Built 2 | . . . . . . . . . . . . . . . . . 2 . . . . . . . . . . . . . . . . . Authchips . | . . . . . . . . . . . . . . . . . . . . . . . . . . . . . . . . . . . Time 69 | . . . . . . . . . . . . . . . . . 69 . . . . . . . . . . . . . . . . . Total Part Build Rating 18 | . . . . . . . . . . . . . . . . . 18 . . . . . . . . . . . . . . . . . Parts Repaired 5 | . . . . . . . . . . . . . . . . . . . . . . 2 . . . . 2 . . . 1 . . . Time 195 | . . . . . . . . . . . . . . . . . . . . . . 124 . . . . 51 . . . 20 . . . Parts Recycled . | . . . . . . . . . . . . . . . . . . . . . . . . . . . . . . . . . . . Recycled Matter . | . . . . . . . . . . . . . . . . . . . . . . . . . . . . . . . . . . . Retrieved Matter . | . . . . . . . . . . . . . . . . . . . . . . . . . . . . . . . . . . . Retrieved Components 14 | . . . . . . . . . . . . . . . . . 6 . . . . 6 . . . . 1 1 . . . . . . Parts Scanalyzed 3 | . . . . . . . 1 . . . . 1 . . . . . . . . . . . . . . . . . . 1 . . . Part Schematics Acquired 2 | . . . . . . . 1 . . . . . . . . . . . . . . . . . . . . . . . 1 . . . Parts Damaged . | . . . . . . . . . . . . . . . . . . . . . . . . . . . . . . . . . . . Bothacking | -11 -10 -10 -10 -9 -8 -8 -7 -7 -7 -7 -6 -6 -6 -6 -6 -5 -5 -5 -5 -5 -4 -4 -4 -4 -4 -4 -3 -3 -3 -2 -2 -2 -1 -1 ------------ Run | Jun Mat Min Exi Min Mat Sto Fac Low Low Zio Pro Fac Low Low Dat Pro Fac Upp Upp War Pro Fac Ext Cet Arc Hub Res Arm Lab Res Tes Sec Acc Com Used RIF Installer . | . . . . . . . . . . . . . . . . . . . . . . . . . . . . . . . . . . . Robots Hacked 35 | . . . . . . . . . . . . . . . . . . . . . . 1 . . . . 3 2 . 18 3 7 . 1 Non-combat 5 | . . . . . . . . . . . . . . . . . . . . . . 1 . . . . . . . 3 1 . . . Combat 30 | . . . . . . . . . . . . . . . . . . . . . . . . . . . 3 2 . 15 2 7 . 1 Robot Hacks Applied 15 | . . . . . . . . . . . . . . . . . . . . . . 1 . . . . . . . 12 2 . . . parse_system 13 | . . . . . . . . . . . . . . . . . . . . . . . . . . . . . . 12 1 . . . no_distress 2 | . . . . . . . . . . . . . . . . . . . . . . 1 . . . . . . . . 1 . . . Relay Couplers Released 3 | . . . . . . . . . . . . . . . . . . . . . . . . . . . 3 . . . . . . . Programmers 3 | . . . . . . . . . . . . . . . . . . . . . . . . . . . 3 . . . . . . . Fabnet Peak Effective % 4 | . . . . . . . . . . . . . . . . . . . . . . . . . . . 3 3 3 4 4 4 1 1 Autooverrided 21 | . . . . . . . . . . . . . . . . . . . . . . . . . . . 3 2 . 7 1 7 . 1 Robots Rewired 35 | . . . . . . . . . . . . 1 . . . . . 4 . 5 . . 19 . . . . 4 . . 1 . 1 . Allies Hacked 1 | . . . . . . . . . . . . . . . . . . . 1 . . . . . . . . . . . . . . . Hacks Repelled 1 | . . . . . . . . . . . . . . . . . . . . . . . . . . . . . . . . 1 . . Allies | -11 -10 -10 -10 -9 -8 -8 -7 -7 -7 -7 -6 -6 -6 -6 -6 -5 -5 -5 -5 -5 -4 -4 -4 -4 -4 -4 -3 -3 -3 -2 -2 -2 -1 -1 -------- Run | Jun Mat Min Exi Min Mat Sto Fac Low Low Zio Pro Fac Low Low Dat Pro Fac Upp Upp War Pro Fac Ext Cet Arc Hub Res Arm Lab Res Tes Sec Acc Com Total Allies 147 | . . 3 . 1 . 2 . . 3 . . 1 . . . 1 1 4 . 5 . 1 27 5 . . 3 6 . 7 19 7 15 36 Largest Group 17 | . . 3 1 1 1 2 . . 3 3 . 1 . . . 1 2 5 5 9 4 5 13 10 9 7 1 3 3 1 14 1 8 17 Highest-Rated Group 826 | . . 40 16 31 31 62 . . 93 93 . 20 . . . 96 106 241 236 460 220 230 577 826 729 560 82 168 168 148 234 58 135 242 Highest-Rated Ally 159 | . . 16 16 31 31 31 . . 31 31 . 20 . . . 96 96 91 91 91 65 65 159 159 143 96 82 56 56 148 146 58 35 15 Total Orders 47 | . . . . . . 14 2 . . . . 1 . . . . . . . 19 3 . . . . 3 . 1 . . 2 . 2 . STAY 7 | . . . . . . . . . . . . . . . . . . . . 2 1 . . . . 2 . 1 . . 1 . . . FOLLOW 6 | . . . . . . . . . . . . . . . . . . . . 3 1 . . . . 1 . . . . 1 . . . GUARD 1 | . . . . . . . . . . . . . . . . . . . . 1 . . . . . . . . . . . . . . AID 1 | . . . . . . . . . . . . . . . . . . . . . 1 . . . . . . . . . . . . . EXPLORE 31 | . . . . . . 14 2 . . . . . . . . . . . . 13 . . . . . . . . . . . . 2 . RETURN 1 | . . . . . . . . . . . . 1 . . . . . . . . . . . . . . . . . . . . . . Ally Attacks 712 | . . 26 . 3 . 11 . . . . . . . . . 3 22 9 5 53 . 14 133 109 32 41 6 25 14 11 73 3 52 67 Total Damage 20632 | . . 255 . 50 . 151 . . . . . . . . . 98 924 293 116 1781 . 437 3857 2925 998 1273 120 1269 613 353 2346 45 1341 1387 Kills 118 | . . 6 . 2 . 2 . . . . . . . . . . 7 2 2 7 . 3 25 12 3 7 . 5 1 2 17 . 9 6 Allies Corrupted 14 | . . . . . . . . . . . . . . . . . . . . 9 . 1 1 . . . . 1 1 . . . 1 . Allies Melted 2 | . . . . . . 1 . . . . . . . . . . . . . . . . . . . . . . . 1 . . . . Intel | -11 -10 -10 -10 -9 -8 -8 -7 -7 -7 -7 -6 -6 -6 -6 -6 -5 -5 -5 -5 -5 -4 -4 -4 -4 -4 -4 -3 -3 -3 -2 -2 -2 -1 -1 ------- Run | Jun Mat Min Exi Min Mat Sto Fac Low Low Zio Pro Fac Low Low Dat Pro Fac Upp Upp War Pro Fac Ext Cet Arc Hub Res Arm Lab Res Tes Sec Acc Com Robot Analysis Total 1 | . . . . . . . . . . . . . . . . . . . . . . . . . . . . 1 . . . . . . Derelict Logs Recovered 17 | . . 1 . 2 . . . 2 1 1 1 . 2 . . 2 . 1 2 . 2 . . . . . . . . . . . . . Drone Launches 116 | . . . . . . 20 2 . . . . 2 . . . . . . . 88 . . . . . . . . . . . . 4 . Drone Recoveries 17 | . . . . . . 6 . . . . . 1 . . . . . . . 8 . . . . . . . . . . . . 2 . Exploration | -11 -10 -10 -10 -9 -8 -8 -7 -7 -7 -7 -6 -6 -6 -6 -6 -5 -5 -5 -5 -5 -4 -4 -4 -4 -4 -4 -3 -3 -3 -2 -2 -2 -1 -1 ------------- Run | Jun Mat Min Exi Min Mat Sto Fac Low Low Zio Pro Fac Low Low Dat Pro Fac Upp Upp War Pro Fac Ext Cet Arc Hub Res Arm Lab Res Tes Sec Acc Com Turns Passed 20274 | 169 468 1048 473 807 181 243 369 326 414 494 304 665 490 94 21 246 539 290 442 997 680 829 984 582 104 764 1287 1058 237 1335 800 1660 229 645 Spaces Moved 27767 | 99 290 684 312 509 192 254 419 700 895 1018 603 945 1261 359 78 534 1104 732 1033 1221 923 1376 1116 622 133 1232 1921 1432 310 1479 751 2025 358 847 Core 2 | 2 . . . . . . . . . . . . . . . . . . . . . . . . . . . . . . . . . . Treads 1307 | 26 . 433 312 509 25 2 . . . . . . . . . . . . . . . . . . . . . . . . . . . . Legs 2926 | 71 290 251 . . . . . . . . . . . . . . . . . . . . . . . . . . . . . 1109 358 847 Wheels . | . . . . . . . . . . . . . . . . . . . . . . . . . . . . . . . . . . . Hover 17966 | . . . . . 167 252 419 700 895 1018 603 569 . . . . . . . 1132 923 1376 1116 622 133 1232 1921 1432 310 1479 751 916 . . Flight 5566 | . . . . . . . . . . . . 376 1261 359 78 534 1104 732 1033 89 . . . . . . . . . . . . . . Fastest Speed 23 | 50 120 120 152 152 52 52 45 45 45 45 45 26 26 26 26 26 23 24 24 24 40 40 40 43 43 41 41 46 59 53 55 30 30 30 Average Speed 49 | 129 120 143 152 152 65 55 62 45 45 45 45 51 26 26 26 26 24 25 24 56 40 40 40 53 44 45 47 50 59 57 56 43 30 30 Slowest Speed 225 | 160 120 160 152 152 176 225 112 45 45 45 45 116 26 26 26 26 106 30 24 156 40 40 96 96 91 102 54 102 59 119 111 129 30 90 Overloaded Moves . | . . . . . . . . . . . . . . . . . . . . . . . . . . . . . . . . . . . Propulsion Burnouts . | . . . . . . . . . . . . . . . . . . . . . . . . . . . . . . . . . . . Robots Hopped 3 | . . . . . . . . . . 1 . . 1 . . . . . 1 . . . . . . . . . . . . . . . Cave-ins Triggered 1 | . . . . . . . . . . . . . . . . . . . . . . . . . . . . . . . . . . 1 Exploration Rate (%) 64 | 6 51 99 78 95 24 73 14 82 89 86 71 19 93 60 68 62 25 73 92 94 88 32 97 92 98 76 45 69 97 40 56 75 15 35 Regions Visited 34 Branch Regions 25 Pre-discovered Areas 11 | . . . 1 1 . . . 1 1 3 . . 1 . 1 1 . . 1 . . . . . . . . . . . . . . . Known Exits Taken 22 | . . . . . 1 . . . . . . 1 1 1 1 1 1 1 1 1 1 1 1 1 1 1 1 1 1 1 1 1 . . Unknown Exits Taken 12 | 1 1 1 1 1 . 1 1 1 1 1 1 . . . . . . . . . . . . . . . . . . . . . 1 . Scrap Searched 34 | . . 1 . 3 . . . 3 6 2 3 . 4 1 . 3 . 3 4 . 1 . . . . . . . . . . . . . Spaces Dug 379 | . . . . . 2 . 11 . 1 . 2 22 14 . . 58 23 21 2 . . 6 1 1 . 29 7 22 2 2 . 36 49 68 Terrain Destroyed 1680 | . . . . . 41 8 11 . 1 . 63 91 28 . . 123 75 21 2 15 15 78 14 222 1 204 7 234 2 6 57 75 92 194 Melee 121 | . . . . . 2 . 11 . 1 . . 10 14 . . 2 11 3 2 . . 6 1 1 . 28 7 16 2 2 . 2 . . Projectile 361 | . . . . . . . . . . . 1 2 1 . . 5 2 2 . 9 15 4 13 2 1 23 . 9 . . 1 54 78 139 AOE 1190 | . . . . . 39 8 . . . . 62 79 13 . . 116 62 16 . 6 . 68 . 219 . 153 . 209 . . 53 18 14 55 Terrain Rammed . | . . . . . . . . . . . . . . . . . . . . . . . . . . . . . . . . . . . Walls Destroyed . | . . . . . . . . . . . . . . . . . . . . . . . . . . . . . . . . . . . Machines Disabled . | . . . . . . . . . . . . . . . . . . . . . . . . . . . . . . . . . . . Actions | -11 -10 -10 -10 -9 -8 -8 -7 -7 -7 -7 -6 -6 -6 -6 -6 -5 -5 -5 -5 -5 -4 -4 -4 -4 -4 -4 -3 -3 -3 -2 -2 -2 -1 -1 --------- Run | Jun Mat Min Exi Min Mat Sto Fac Low Low Zio Pro Fac Low Low Dat Pro Fac Upp Upp War Pro Fac Ext Cet Arc Hub Res Arm Lab Res Tes Sec Acc Com Total 32678 | 121 353 724 311 537 229 320 513 708 903 1050 632 1090 1372 358 77 624 1311 827 1221 1511 1221 1610 1589 826 169 1350 2260 1677 348 1885 1010 2490 422 1029 Wait 2034 | . 8 4 . 6 . 5 35 . 1 . 13 42 52 . . 73 124 65 174 145 282 154 166 147 29 22 190 97 . 1 76 90 . 33 Move 27726 | 98 289 683 311 508 191 253 418 699 894 1015 602 944 1258 358 77 533 1103 731 1030 1220 922 1375 1114 621 132 1231 1920 1431 309 1478 750 2024 357 847 Hop 3 | . . . . . . . . . . 1 . . 1 . . . . . 1 . . . . . . . . . . . . . . . Pick Up 182 | 7 8 8 . 8 6 3 9 1 1 10 2 6 2 . . . 8 2 3 8 1 7 3 5 . 2 18 8 3 9 5 25 2 2 Fast Attach 383 | 7 . . . . 3 7 7 1 2 5 2 23 4 . . . 12 3 2 28 1 8 4 . . 12 26 6 12 144 27 30 2 5 Attach 74 | . 1 . . . 4 3 6 1 . 1 1 6 5 . . 1 4 3 1 4 . 3 1 3 . 6 4 1 . 3 . 6 3 3 Detach 35 | . . . . . 2 4 5 1 . 1 3 4 4 . . . 1 1 2 2 . . . . . 2 . 2 . . . 1 . . Swap 328 | 2 8 6 . 3 7 12 7 4 2 5 . 6 10 . . 10 3 4 . 20 7 7 13 29 4 9 15 20 4 17 24 59 6 5 Drop 500 | . 9 9 . 8 7 10 12 1 2 10 4 27 4 . . . 14 1 4 49 3 11 3 3 . 9 35 15 12 152 34 44 4 4 Fire 651 | 7 30 14 . 4 7 16 . . . 1 5 15 8 . . 5 10 3 . 11 5 16 9 14 3 13 . 44 . 57 75 123 31 125 Melee 403 | . . . . . 2 . 14 . 1 1 . 12 24 . . 2 30 12 4 10 . 17 38 4 1 44 21 24 8 24 19 88 2 1 Ram . | . . . . . . . . . . . . . . . . . . . . . . . . . . . . . . . . . . . Kick 4 | . . . . . . . . . . . . . . . . . . . . . . . . . . . . . . . . . . 4 Crush . | . . . . . . . . . . . . . . . . . . . . . . . . . . . . . . . . . . . Escape Stasis 40 | . . . . . . . . . . . . . . . . . . . . . . . 40 . . . . . . . . . . . Rewire 251 | . . . . . . . . . . . . 5 . . . . 2 2 . 6 . . 198 . . . . 23 . . . . 15 . Trap 49 | . . . . . . . . . . . . . . . . . . . . . . 12 . . . . 31 6 . . . . . . Miscellaneous 15 | . . . . . . 7 . . . . . . . . . . . . . 8 . . . . . . . . . . . . . . Route ------- -11/Junkyard -10/Materials (discovered 2 exits: [*Mat] / *Min) -10/Mines (discovered 3 exits: [*Mat x2] / *Exi) -10/Exiles -9/Mines -8/Materials -8/Storage -7/Factory -7/Lower Caves -7/Lower Caves -7/Zion -6/Proximity Caves -6/Factory (discovered 2 exits: *Fac / *Low) -6/Lower Caves -6/Lower Caves (discovered 2 exits: *Fac / *Dat) -6/Data Miner -5/Proximity Caves -5/Factory (discovered 3 exits: Fac x2 / *Upp) -5/Upper Caves -5/Upper Caves (discovered 2 exits: *Fac / *War) -5/Warlord -4/Proximity Caves -4/Factory (discovered 4 exits: Upp x2 / *Ext x2) -4/Extension (discovered 2 exits: *Res / *Cet) -4/Cetus (discovered 2 exits: *Res / *Arc) -4/Archives (discovered 3 exits: *Res / *Hub x2) -4/Hub_04(d) (discovered 3 exits: *Res x3) -3/Research (discovered 5 exits: *Res x2 / *Arm / *Qua x2) -3/Armory -3/Lab -2/Research (discovered 3 exits: *Acc x2 / *Tes) -2/Testing -2/Section 7 -1/Access -1/Command History --------- Turn | Location | Event 15 | -11/Junkyard | Discovered new exit (range 15) 170 | -11/Junkyard | Entered Materials 314 | -10/Materials | Discovered new exit (range 15) 317 | -10/Materials | Build established: Mutant 420 | -10/Materials | Discovered new exit (range 14) 638 | -10/Materials | Entered Mines 726 | -10/Mines | Learned 2 Materials zone layouts 1034 | -10/Mines | Assisted by bots powering up and referring to "LRC-V3" 1250 | -10/Mines | Discovered new exit (range 6) 1295 | -10/Mines | Deemed a non-threat by the Exiles lab entrance 1295 | -10/Mines | Discovered new exit (range 5) 1372 | -10/Mines | Discovered new exit (range 12) 1389 | -10/Mines | Core integrity fell below 50% 1404 | -10/Mines | Met a Derelict shopkeep closing up shop 1686 | -10/Mines | Entered Exiles 1686 | -10/Exiles | Accompanied by 1 ally 1723 | -10/Exiles | Met 8R-AWN 1749 | -10/Exiles | Met EX-HEX 1797 | -10/Exiles | Met EX-BIN 1820 | -10/Exiles | Met EX-DEC 1832 | -10/Exiles | Learned location of Zion (-7) 1914 | -10/Exiles | Visited The Gauntlet 2104 | -10/Exiles | Discovered new exit (range 14) 2159 | -10/Exiles | Entered Mines 2159 | -9/Mines | Accompanied by 1 ally 2518 | -9/Mines | A weapon hastily lodged in a ceiling crevice suddenly fell to the ground 2538 | -9/Mines | Learned location of 1 exit from Materials 2738 | -9/Mines | Received a Mining Laser from a helpful Derelict 2909 | -9/Mines | Discovered new exit (range 11) 2941 | -9/Mines | Found the Drone Emporium 2950 | -9/Mines | Found Prototype Device 2966 | -9/Mines | Entered Materials 2966 | -8/Materials | Accompanied by 1 ally 2966 | -8/Materials | Evolved 4 slots: Power x1, Propulsion x1, Utility x2 2966 | -8/Materials | Identified Decoy Drone Bay 2967 | -8/Materials | Identified exit to Storage 3147 | -8/Materials | Entered Storage 3152 | -8/Storage | Met a pair of Derelict thieves 3265 | -8/Storage | Destroyed 7 combat bots 3368 | -8/Storage | Discovered new exit (range 32) 3390 | -8/Storage | Entered Factory 3390 | -7/Factory | Evolved 2 slots: Propulsion x2 3712 | -7/Factory | Discovered new exit (range 15) 3759 | -7/Factory | Entered Lower Caves 3766 | -7/Lower Caves | Encountered a Warlord checkpoint 3811 | -7/Lower Caves | Learned Factory stockpile data 3991 | -7/Lower Caves | Discovered new exit (range 13) 4085 | -7/Lower Caves | Entered another Lower Caves area 4244 | -7/Lower Caves | Found Alien Artifact 4244 | -7/Lower Caves | Identified Core Expander 4244 | -7/Lower Caves | Installed Core Expander, added new Power slot 4374 | -7/Lower Caves | A Commander dispatched an escort 4377 | -7/Lower Caves | Learned Extension emergency access door positions 4377 | -7/Lower Caves | Learned Armory emergency access door positions 4423 | -7/Lower Caves | Encountered a Warlord checkpoint 4434 | -7/Lower Caves | Discovered new exit (range 12) 4499 | -7/Lower Caves | Entered Zion 4499 | -7/Zion | Accompanied by 3 allies 4500 | -7/Zion | Commander's escort returned to base 4500 | -7/Zion | Commander's escort returned to base 4500 | -7/Zion | Commander's escort returned to base 4524 | -7/Zion | Found Prototype Device 4524 | -7/Zion | Identified Phasing AFG 4545 | -7/Zion | Found CR-A16's Pointy Stick 4550 | -7/Zion | Discovered new exit (range 12) 4576 | -7/Zion | Learned Factory emergency access door positions 4712 | -7/Zion | Learned Factory garrison access intel 4745 | -7/Zion | Found Prototype Device 4745 | -7/Zion | Identified Bomb Factory No. 2 4793 | -7/Zion | Learned location of Warlord (-5) 4807 | -7/Zion | Learned location of Armory (-3) 4819 | -7/Zion | Given A8's code to call for help 4840 | -7/Zion | Found Prototype Special Weapon 4841 | -7/Zion | Identified RU-N14's Throwing Claymores 4845 | -7/Zion | Found RU-N14's Throwing Claymores 4850 | -7/Zion | Found RU-N14's Throwing Claymores 4852 | -7/Zion | Found RU-N14's Throwing Claymores 4870 | -7/Zion | Found GAL Module 4993 | -7/Zion | Entered Proximity Caves 5142 | -6/Proximity Caves | Learned Factory trap positions 5162 | -6/Proximity Caves | Discovered new exit (range 12) 5258 | -6/Proximity Caves | Attracted the attention of an 0b10 outpost 5297 | -6/Proximity Caves | Entered Factory 5297 | -6/Factory | Evolved 2 slots: Utility x2 5298 | -6/Factory | Identified exit to Lower Caves 5298 | -6/Factory | Destroyed 7 combat bots 5299 | -6/Factory | Loaded intel: 82 trap records 5302 | -6/Factory | Loaded intel: 4 garrison access locations 5306 | -6/Factory | Identified exit to DSF 5838 | -6/Factory | Discovered new exit (range 10) 5875 | -6/Factory | Identified exit to Factory 5962 | -6/Factory | Entered Lower Caves 6000 | -6/Lower Caves | Spotted B-75 Beast 6024 | -6/Lower Caves | Revealed the true nature of CR-A16's Pointy Stick 6027 | -6/Lower Caves | Destroyed B-75 Beast 6110 | -6/Lower Caves | Build established: Sprinter 6409 | -6/Lower Caves | Discovered new exit (range 13) 6435 | -6/Lower Caves | Encountered a Warlord checkpoint 6452 | -6/Lower Caves | Identified exit to Lower Caves 6452 | -6/Lower Caves | Entered another Lower Caves area 6456 | -6/Lower Caves | Discovered exit to Factory (range 15) 6529 | -6/Lower Caves | Discovered new exit (range 9) 6534 | -6/Lower Caves | Identified exit to Data Miner 6546 | -6/Lower Caves | Entered Data Miner 6546 | -6/Data Miner | Discovered new exit (range 6) 6551 | -6/Data Miner | Met Data Miner 6556 | -6/Data Miner | Learned location of Section 7 (-2) 6556 | -6/Data Miner | Acquired the access code to Warlord's prototype stash 6561 | -6/Data Miner | Received God Mode back door access code from Data Miner 6566 | -6/Data Miner | Identified exit to Proximity Caves 6567 | -6/Data Miner | Entered Proximity Caves 6649 | -5/Proximity Caves | Escorted by Enhanced Grunt 6677 | -5/Proximity Caves | Learned 8 Factory zone layouts 6742 | -5/Proximity Caves | Discovered exit to Factory (range 6) 6813 | -5/Proximity Caves | Entered Factory 6813 | -5/Factory | Accompanied by 1 ally 6813 | -5/Factory | Evolved 2 slots: Propulsion x1, Utility x1 6814 | -5/Factory | Identified exit to Factory 6833 | -5/Factory | Found Prototype Processor 6833 | -5/Factory | Identified Exp. Signal Interpreter 7113 | -5/Factory | First assault squad dispatched 7139 | -5/Factory | Fabricated Enh. Quantum Rifle (x2) 7269 | -5/Factory | Discovered new exit (range 6) 7270 | -5/Factory | Identified exit to Upper Caves 7281 | -5/Factory | Lost 3 parts (2p1u) 7346 | -5/Factory | Lost 3 parts (3n) 7352 | -5/Factory | Entered Upper Caves 7352 | -5/Upper Caves | Accompanied by 1 ally 7357 | -5/Upper Caves | Identified exit to Upper Caves 7422 | -5/Upper Caves | Attacked by a delusional Derelict stockpiling Unaware 7555 | -5/Upper Caves | Encountered a Warlord checkpoint 7626 | -5/Upper Caves | Build established: Scavenger-Sprinter 7642 | -5/Upper Caves | Entered another Upper Caves area 7642 | -5/Upper Caves | Accompanied by 5 allies 7690 | -5/Upper Caves | Discovered exit to Factory (range 14) 7887 | -5/Upper Caves | Learned Factory terminal intel 8042 | -5/Upper Caves | Discovered new exit (range 5) 8042 | -5/Upper Caves | Identified exit to Warlord 8084 | -5/Upper Caves | Entered Warlord 8084 | -5/Warlord | Accompanied by 4 allies 8093 | -5/Warlord | System corruption cleaned by Quarantine Array 8394 | -5/Warlord | Build established: Commander-Mutant 8483 | -5/Warlord | Warlord's base attacked by MAIN.C 8594 | -5/Warlord | Found Prototype Energy Gun 8594 | -5/Warlord | Identified Vortex Rail 8604 | -5/Warlord | Found Vortex Rail 8631 | -5/Warlord | Found Prototype Device 8631 | -5/Warlord | Identified Minesniffer Drone Bay 8701 | -5/Warlord | Met Warlord 8706 | -5/Warlord | Opened Warlord's prototype stash 8726 | -5/Warlord | Found Prototype Reactor 8726 | -5/Warlord | Identified Vortex Chain Reactor 8733 | -5/Warlord | Found Prototype Device 8733 | -5/Warlord | Identified System Purifier 8741 | -5/Warlord | Found Prototype Processor 8741 | -5/Warlord | Identified Exp. Core Analyzer 8833 | -5/Warlord | Warlord forces counterattacked 8848 | -5/Warlord | Found Prototype Device 8859 | -5/Warlord | Identified Exp. Cloaking Device 8904 | -5/Warlord | Found Prototype Ballistic Cannon 8904 | -5/Warlord | Identified Hvy. Autocannon 8936 | -5/Warlord | Spotted Executioner 8957 | -5/Warlord | Spotted Executioner 8983 | -5/Warlord | Discovered new exit (range 12) 8992 | -5/Warlord | Identified exit to Proximity Caves 9021 | -5/Warlord | Spotted Executioner 9081 | -5/Warlord | Entered Proximity Caves 9081 | -4/Proximity Caves | Accompanied by 4 allies 9139 | -4/Proximity Caves | Learned Research terminal intel 9214 | -4/Proximity Caves | Spotter reported a threat 9214 | -4/Proximity Caves | Spotter reported a threat 9291 | -4/Proximity Caves | Learned Research security intel 9364 | -4/Proximity Caves | Discovered exit to Factory (range 12) 9509 | -4/Proximity Caves | Build established: Scavenger-Scout 9600 | -4/Proximity Caves | Received a Behemoth hack from an annoying Tinkerer 9761 | -4/Proximity Caves | Entered Factory 9761 | -4/Factory | Accompanied by 4 allies 9761 | -4/Factory | Evolved 2 slots: Utility x2 9762 | -4/Factory | Loaded intel: 28 terminal locations 9833 | -4/Factory | Spotted B-86 Titan 9971 | -4/Factory | Incoming assault squad redirected 10011 | -4/Factory | Search patrols dispatched 10136 | -4/Factory | Identified exit to Upper Caves 10136 | -4/Factory | Identified exit to Extension 10261 | -4/Factory | First assault squad dispatched 10291 | -4/Factory | Incoming assault squad redirected 10517 | -4/Factory | Repaired Imp. Phase Shifter 10581 | -4/Factory | Repaired Adv. Reaction Control System 10590 | -4/Factory | Entered Extension 10707 | -4/Extension | Rescued a captive Derelict 10840 | -4/Extension | First assault squad dispatched 10999 | -4/Extension | Build established: Commander-Scout 11003 | -4/Extension | Spotted B-86 Titan 11175 | -4/Extension | Spotted B-86 Titan 11183 | -4/Extension | Destroyed B-86 Titan 11190 | -4/Extension | Destroyed B-86 Titan 11222 | -4/Extension | Discovered new exit (range 23) 11223 | -4/Extension | Discovered new exit (range 21) 11251 | -4/Extension | Rescued a captive Derelict 11272 | -4/Extension | Rescued a captive Derelict 11274 | -4/Extension | Rescued a captive Derelict 11278 | -4/Extension | Incoming investigation squad redirected 11385 | -4/Extension | Rescued a captive Derelict 11464 | -4/Extension | Rescued A7 11506 | -4/Extension | Enhanced Grunt warped into view, answering call for help 11513 | -4/Extension | Enhanced Grunt warped into view, answering call for help 11531 | -4/Extension | Identified exit to Cetus 11534 | -4/Extension | Identified exit to Research 11574 | -4/Extension | Entered Cetus 11574 | -4/Cetus | Accompanied by 7 allies (A7) 11579 | -4/Cetus | Acquired a Cetus Manufacturing Module code from A7 11590 | -4/Cetus | Spotted Cetus Guard 11591 | -4/Cetus | Spotted Cetus Guard 11592 | -4/Cetus | Spotted Cetus Guard 11592 | -4/Cetus | Spotted Cetus Guard 11600 | -4/Cetus | Destroyed Cetus Guard 11604 | -4/Cetus | Destroyed Cetus Guard 11605 | -4/Cetus | Allies destroyed Cetus Guard 11606 | -4/Cetus | Allies destroyed Cetus Guard 11669 | -4/Cetus | Started Cetus Manufacturing Module 11694 | -4/Cetus | Manufactured an Enhanced Grunt 11719 | -4/Cetus | Manufactured an Enhanced Grunt 11744 | -4/Cetus | Manufactured an Enhanced Grunt 11769 | -4/Cetus | Manufactured an Enhanced Grunt 11794 | -4/Cetus | Manufactured an Enhanced Grunt 11810 | -4/Cetus | Discovered new exit (range 22) 11825 | -4/Cetus | Identified exit to Archives 11862 | -4/Cetus | Spotted Cetus Guard 11864 | -4/Cetus | Spotted Cetus Guard 11866 | -4/Cetus | Spotted Cetus Guard 11869 | -4/Cetus | Spotted Cetus Guard 11873 | -4/Cetus | Discovered exit to Research (range 22) 11878 | -4/Cetus | Allies destroyed Cetus Guard 11886 | -4/Cetus | Allies destroyed Cetus Guard 11889 | -4/Cetus | Allies destroyed Cetus Guard 11890 | -4/Cetus | Allies destroyed Cetus Guard 11902 | -4/Cetus | Met Revision 17 12022 | -4/Cetus | Escorted A7 to Cetus Mainframe 12156 | -4/Cetus | Entered Archives 12156 | -4/Archives | Accompanied by 9 allies (A7) 12161 | -4/Archives | Received a hacking code to weaken MAIN.C 12185 | -4/Archives | Discovered new exit (range 22) 12195 | -4/Archives | Unable to access archive contents 12196 | -4/Archives | Discovered exit to Research (range 13) 12207 | -4/Archives | Unable to access archive contents 12208 | -4/Archives | Discovered new exit (range 15) 12211 | -4/Archives | Unable to access archive contents 12216 | -4/Archives | Unable to access archive contents 12236 | -4/Archives | Identified exit to Hub_04(d) 12260 | -4/Archives | Entered Hub_04(d) 12260 | -4/Hub_04(d) | Accompanied by 7 allies 12325 | -4/Hub_04(d) | Build established: Scavenger-Scout 12510 | -4/Hub_04(d) | First assault squad dispatched 12526 | -4/Hub_04(d) | Incoming assault squad redirected 12561 | -4/Hub_04(d) | Discovered exit to Research (range 9) 12604 | -4/Hub_04(d) | Discovered exit to Research (range 6) 12680 | -4/Hub_04(d) | Network Hub disabled 12722 | -4/Hub_04(d) | Incoming assault squad redirected 12726 | -4/Hub_04(d) | Found Prototype Device 12726 | -4/Hub_04(d) | Identified Exp. Thermal Shield 12734 | -4/Hub_04(d) | Spotted Lightning 12769 | -4/Hub_04(d) | Spotted Lightning 12800 | -4/Hub_04(d) | Lost 8 parts (2p3n3u) 12804 | -4/Hub_04(d) | Network Hub disabled 12821 | -4/Hub_04(d) | Incoming investigation squad redirected 12844 | -4/Hub_04(d) | Incoming investigation squad redirected 12940 | -4/Hub_04(d) | Network Hub disabled 12949 | -4/Hub_04(d) | Discovered exit to Research (range 20) 12965 | -4/Hub_04(d) | Spotted Lightning 13000 | -4/Hub_04(d) | Network Hub disabled 13010 | -4/Hub_04(d) | Search patrols dispatched 13015 | -4/Hub_04(d) | Incoming investigation squad redirected 13024 | -4/Hub_04(d) | Spotted Lightning 13024 | -4/Hub_04(d) | Spotted Lightning 13024 | -4/Hub_04(d) | Spotted Lightning 13024 | -4/Hub_04(d) | Entered Research 13024 | -3/Research | Evolved 2 slots: Utility x2 13026 | -3/Research | Loaded intel: 23 terminal locations 13078 | -3/Research | Identified exit to DSF 13080 | -3/Research | Discovered new exit (range 16) 13108 | -3/Research | Identified exit to Research 13162 | -3/Research | Identified exit to Armory 13162 | -3/Research | Identified exit to Quarantine 13224 | -3/Research | Revision forces began assault on 0b10 13228 | -3/Research | Found Quantum Capacitor 13288 | -3/Research | Met up with Revision 17++ 13350 | -3/Research | Found Exp. Thermal Shield 13366 | -3/Research | Build established: Hacker-Scout 13538 | -3/Research | Repaired Lrn. Sensor Array 13662 | -3/Research | Spotted B-86 Titan 13671 | -3/Research | Destroyed B-86 Titan 13720 | -3/Research | Found Antimissile System 13724 | -3/Research | Research terminal network offline 13784 | -3/Research | Local machine network offline 13792 | -3/Research | Repaired Adv. Reaction Control System 13922 | -3/Research | Build established: Scavenger-Scout 14130 | -3/Research | Discovered exit to Research (range 11) 14311 | -3/Research | Entered Armory 14467 | -3/Armory | Build established: Scout 14596 | -3/Armory | Search patrols dispatched 14624 | -3/Armory | Local machine network offline 14814 | -3/Armory | Found Adv. Powered Armor 14840 | -3/Armory | Spotted B-86 Titan 15106 | -3/Armory | First assault squad dispatched 15329 | -3/Armory | Discovered new exit (range 3) 15332 | -3/Armory | Identified exit to Lab 15369 | -3/Armory | Entered Lab 15369 | -3/Lab | Accompanied by 3 allies 15369 | -3/Lab | Discovered exit to Research (range 9) 15377 | -3/Lab | Unable to decrypt terminal 15404 | -3/Lab | Detected for breach 15408 | -3/Lab | Gained access to the hidden lab's interior 15408 | -3/Lab | Unable to decrypt terminal 15412 | -3/Lab | Found Alien Artifact 15412 | -3/Lab | Identified Core Reset Matrix 15412 | -3/Lab | Used Core Reset Matrix 15416 | -3/Lab | Sensed 3 artifacts in vicinity 15423 | -3/Lab | Found Integrated Mediator 15423 | -3/Lab | Installed Integrated Mediator, increased core attachment efficiency. 15439 | -3/Lab | Found Prototype Protection 15439 | -3/Lab | Identified Hvy. Regenerative Plating 15448 | -3/Lab | Found Prototype Hackware 15452 | -3/Lab | Found Prototype Energy Gun 15452 | -3/Lab | Identified Tachyon Dispersion Ray 15455 | -3/Lab | Found Prototype Energy Gun 15455 | -3/Lab | Identified Hyp. EM Gauss Rifle 15456 | -3/Lab | Assembled Modified EM Gauss 15481 | -3/Lab | Confronted by A5 15507 | -3/Lab | Destroyed A5 15525 | -3/Lab | Unable to decrypt terminal 15551 | -3/Lab | Unable to decrypt terminal 15551 | -3/Lab | Unable to decrypt terminal 15567 | -3/Lab | Discovered exit to Research (range 5) 15569 | -3/Lab | Unable to decrypt terminal 15606 | -3/Lab | Entered Research 15606 | -2/Research | Warlord forces began assault on 0b10 15606 | -2/Research | Evolved 2 slots: Propulsion x1, Utility x1 15716 | -2/Research | Research machine network offline 15899 | -2/Research | Build established: Alien-Scout 15969 | -2/Research | Found Prototype Device 15969 | -2/Research | Identified Exp. Shock Absorption System 16103 | -2/Research | Borebot progress halted 16190 | -2/Research | Discovered new exit (range 8) 16211 | -2/Research | Identified exit to Access 16303 | -2/Research | Discovered exit to Access (range 16) 16306 | -2/Research | P-80 Master assimilated allied 7Z-0D2(g) 16306 | -2/Research | Spotted Striker 16313 | -2/Research | Borebot progress halted 16497 | -2/Research | Found Prototype Device 16497 | -2/Research | Identified Adv. Kinecellerator 16549 | -2/Research | Found Prototype Device 16549 | -2/Research | Identified Exp. Phase Shifter 16630 | -2/Research | Spotted Striker 16692 | -2/Research | Spotted Tracker 16693 | -2/Research | Spotted Tracker 16694 | -2/Research | Spotted Tracker 16703 | -2/Research | Met up with Warlord 16704 | -2/Research | Warlord invited to help at Command 16719 | -2/Research | Spotted Combat Programmer 16755 | -2/Research | Found Exp. Phase Shifter 16759 | -2/Research | Spotted Combat Programmer 16764 | -2/Research | Found Prototype Energy Gun 16764 | -2/Research | Identified Immobilizer 16936 | -2/Research | Spotted XT-YCB(D) 16937 | -2/Research | Discovered new exit (range 6) 16940 | -2/Research | Identified exit to Testing 16941 | -2/Research | Entered Testing 17020 | -2/Testing | Found Prototype Protection 17020 | -2/Testing | Identified SHELL Armor 17026 | -2/Testing | Found Prototype Protection 17026 | -2/Testing | Identified Lgt. Regenerative Plating 17029 | -2/Testing | Found Prototype Protection 17029 | -2/Testing | Identified Med. Regenerative Plating 17166 | -2/Testing | Spotted PG-YEBERGQ327 17169 | -2/Testing | Rewired PG-YEBERGQ327 17217 | -2/Testing | Identified Quantum Router 17303 | -2/Testing | Scanned by Researcher 17493 | -2/Testing | Found Prototype Launcher 17493 | -2/Testing | Identified Ragnarok Missile Launcher 17519 | -2/Testing | Found Unknown Launcher 17519 | -2/Testing | Identified Fusion Bomb Launcher 17564 | -2/Testing | Repaired Lrn. Sensor Array 17573 | -2/Testing | Assembled infested ambush trap array 17625 | -2/Testing | Incoming assault squad redirected 17651 | -2/Testing | Intercept squad dispatched 17694 | -2/Testing | Spotted Fortress 17725 | -2/Testing | Spotted Tracker 17729 | -2/Testing | Spotted Tracker 17738 | -2/Testing | Discovered new exit (range 5) 17740 | -2/Testing | Identified exit to Section 7 17741 | -2/Testing | Entered Section 7 17742 | -2/Section 7 | Sensed 24 artifacts in vicinity 17793 | -2/Section 7 | Spotted S7 Guard 17829 | -2/Section 7 | Destroyed S7 Guard 17881 | -2/Section 7 | Found Core Membrane 17881 | -2/Section 7 | Installed Core Membrane, gained immunity to corruption 17951 | -2/Section 7 | Spotted S7 Guard 18026 | -2/Section 7 | Destroyed S7 Guard 18064 | -2/Section 7 | Found Navigation Efficiency Matrix 18064 | -2/Section 7 | Installed Navigation Efficiency Matrix, process failed with unexpected side effects 18068 | -2/Section 7 | Intercept squad dispatched 18075 | -2/Section 7 | Spotted Tracker 18076 | -2/Section 7 | Spotted Tracker 18084 | -2/Section 7 | Destroyed Tracker 18087 | -2/Section 7 | Destroyed Tracker 18090 | -2/Section 7 | Spotted Combat Programmer 18102 | -2/Section 7 | Spotted Combat Programmer 18131 | -2/Section 7 | Destroyed Combat Programmer 18285 | -2/Section 7 | Found Integrity Redistributor 18285 | -2/Section 7 | Used Integrity Redistributor, redistributed integrity from core (-107) 18335 | -2/Section 7 | Spotted B-90 Cyclops 18339 | -2/Section 7 | Spotted S7 Guard 18385 | -2/Section 7 | Destroyed S7 Guard 18398 | -2/Section 7 | Destroyed B-90 Cyclops 18462 | -2/Section 7 | Spotted Executioner 18462 | -2/Section 7 | Spotted Executioner 18494 | -2/Section 7 | Spotted Alpha 7 18495 | -2/Section 7 | Spotted Alpha 7 18581 | -2/Section 7 | Spotted Striker 18581 | -2/Section 7 | Spotted Striker 18600 | -2/Section 7 | Spotted Executioner 18600 | -2/Section 7 | Spotted Executioner 18611 | -2/Section 7 | Intercept squad dispatched 18625 | -2/Section 7 | Integrated with Sigix Exoskeleton 18629 | -2/Section 7 | Spotted Tracker 18630 | -2/Section 7 | Spotted Tracker 18630 | -2/Section 7 | Spotted Tracker 18631 | -2/Section 7 | Destroyed Tracker 18637 | -2/Section 7 | Destroyed Tracker 18637 | -2/Section 7 | Destroyed Tracker 18706 | -2/Section 7 | Spotted Combat Programmer 18715 | -2/Section 7 | Spotted Combat Programmer 18717 | -2/Section 7 | Destroyed Combat Programmer 18723 | -2/Section 7 | Spotted Combat Programmer 18735 | -2/Section 7 | Destroyed Combat Programmer 18756 | -2/Section 7 | Destroyed Combat Programmer 18780 | -2/Section 7 | Destroyed Combat Programmer 18786 | -2/Section 7 | Spotted B-99 Colossus 18885 | -2/Section 7 | Local machine network offline 18920 | -2/Section 7 | Build established: Alien-Sigix 19053 | -2/Section 7 | Found LRC Storage 19054 | -2/Section 7 | Found LRC Matter Compressor 19055 | -2/Section 7 | Installed LRC Matter Compressor, increased matter storage capacity (+125) 19056 | -2/Section 7 | Installed LRC Storage, increased inventory capacity (+2) 19116 | -2/Section 7 | Intercept squad dispatched 19126 | -2/Section 7 | Spotted Tracker 19127 | -2/Section 7 | Spotted Tracker 19128 | -2/Section 7 | Spotted Tracker 19129 | -2/Section 7 | Sigix Exoskeleton integrity reduced to 80% 19132 | -2/Section 7 | Destroyed Tracker 19135 | -2/Section 7 | Destroyed Tracker 19135 | -2/Section 7 | Destroyed Tracker 19157 | -2/Section 7 | Spotted Striker 19169 | -2/Section 7 | Destroyed B-99 Colossus 19172 | -2/Section 7 | Found Prototype Ballistic Gun 19267 | -2/Section 7 | Spotted Striker 19267 | -2/Section 7 | Spotted Executioner 19279 | -2/Section 7 | Spotted Executioner 19282 | -2/Section 7 | Core integrity fell below 50% 19283 | -2/Section 7 | Spotted Executioner 19312 | -2/Section 7 | Identified Multirail 19323 | -2/Section 7 | Spotted S7 Guard 19326 | -2/Section 7 | Found Core Regenerator 19337 | -2/Section 7 | Sigix Exoskeleton integrity reduced to 60% 19342 | -2/Section 7 | Found Core Physics Calibrator 19343 | -2/Section 7 | Used Core Regenerator, restored core integrity (+362) 19391 | -2/Section 7 | Discovered exit to Access (range 18) 19398 | -2/Section 7 | Found Integrity Redistributor 19400 | -2/Section 7 | Used Integrity Redistributor, redistributed integrity from core (-323) 19401 | -2/Section 7 | Entered Access 19401 | -1/Access | Evolved 2 slots: Utility x2 19406 | -1/Access | Emitted hypermatrix ping 19411 | -1/Access | Assembled emerged from beneath the floor 19493 | -1/Access | Spotted B-99 Colossus 19494 | -1/Access | Destroyed B-99 Colossus 19536 | -1/Access | Discovered new exit (range 17) 19556 | -1/Access | Spotted B-99 Colossus 19563 | -1/Access | Destroyed B-99 Colossus 19581 | -1/Access | Assembled emerged from beneath the floor 19596 | -1/Access | Intercept squad dispatched 19618 | -1/Access | Spotted B-99 Colossus 19630 | -1/Access | Entered Command 19635 | -1/Command | Emitted hypermatrix ping 19640 | -1/Command | Assembled emerged from beneath the floor 19643 | -1/Command | Assembled emerged from beneath the floor 19652 | -1/Command | Disengaged cave seal 19653 | -1/Command | Welcomed Warlord to Command 19654 | -1/Command | Attacked by Warlord 19657 | -1/Command | Phase Generator disabled 19674 | -1/Command | Assembled emerged from beneath the floor 19688 | -1/Command | Assembled emerged from beneath the floor 19695 | -1/Command | Assembled emerged from beneath the floor 19701 | -1/Command | Spotted B-99 Colossus 19704 | -1/Command | Destroyed B-99 Colossus 19731 | -1/Command | Spotted L8-RN6(K) 19735 | -1/Command | Allies destroyed L8-RN6(K) 19789 | -1/Command | Met MAIN.C 19792 | -1/Command | 0b10 Conduit disabled 19802 | -1/Command | Spotted M Guard 19802 | -1/Command | Spotted M Guard 19802 | -1/Command | Spotted Combat Programmer 19802 | -1/Command | Spotted Combat Programmer 19811 | -1/Command | High security lockdown imminent 19853 | -1/Command | Destroyed Combat Programmer 19856 | -1/Command | Destroyed M Guard 19864 | -1/Command | Destroyed Combat Programmer 19881 | -1/Command | Destroyed M Guard 19881 | -1/Command | All MAIN.C guards destroyed 19891 | -1/Command | High security lockdown engaged 19943 | -1/Command | Spotted 6A-RLU(L) 20175 | -1/Command | MAIN.C's shell transforms into a squad of autonomous robots 20175 | -1/Command | Destroyed MAIN.C Shell 20175 | -1/Command | Spotted M Shell/Def 20175 | -1/Command | Spotted M Shell/Atk 20175 | -1/Command | Spotted M Shell/Def 20175 | -1/Command | Spotted M Shell/Atk 20175 | -1/Command | Spotted M Shell/Atk 20175 | -1/Command | Spotted M Shell/Def 20175 | -1/Command | Spotted M Shell/Atk 20175 | -1/Command | Spotted M Shell/Def 20177 | -1/Command | MAIN.C activated Command garrisons 20191 | -1/Command | Core integrity fell below 50% 20198 | -1/Command | Sigix Exoskeleton integrity reduced to 40% 20218 | -1/Command | Crushed by falling debris 20227 | -1/Command | Sigix Exoskeleton integrity reduced to 20% 20232 | -1/Command | Core integrity fell below 20% 20247 | -1/Command | Destroyed M Shell/Def 20250 | -1/Command | Destroyed M Shell/Def 20257 | -1/Command | Destroyed M Shell/Def 20260 | -1/Command | Destroyed M Shell/Atk 20265 | -1/Command | Destroyed M Shell/Atk 20275 | -1/Command | Exoskeleton Destroyed Last Messages --------------- 20228_ Exp. Power Amplifier blasted off. 20228_ Knocked back. 20229_ Acquired Exp. Power Amplifier. 20229_ Knocked back. 20231_ Exp. Power Amplifier blasted off. 20231_ Knocked back. 20231_ Acquired Exp. Power Amplifier. 20232_ Knocked back. 20233_ Navigation matrix triggers involuntary quantum shift. 20235_ Acquired 14 matter. 20242_ Navigation matrix triggers involuntary quantum shift. 20242_ Quantum Shear penetrates Heavy Barrier. 20247_ M Shell/Def destroyed. 20250_ Acquired 4 matter. 20250_ Quantum Shear penetrates M Shell/Atk. 20253_ Acquired 12 matter. 20261_ Acquired 10 matter. 20265_ Acquired 11 matter. 20265_ Acquired 3 matter. 20275_ Sigix Exoskeleton destroyed. Map ----- +----------------------------------------------------+ | ??????????????#################################### | | ?????????????##################################### | | ????????????###################################### | | ???????????################################ ###### | | ???????????####################################### | | ??????????############################ #%%%!#### | | ?????????###################################%##### | | ?????????################""""""" """ #### | | ?????????################"" "" % #### | | ????????#################""""" "" ! #### | | ????????#################""""""""""" % % % % | | ????????#################" " " " % | | ????????#################"" """" % % | | ????????#################"" """% #### | | ???????################## """ % #### | | ???????################## % Y %#### | | ???????################## =* Y %" #### | | ????????#################" ]!%=! "" # ## | | ????????#################"" """ #### | | ????????################# """"#### | | ???????################## % " #### | | ???????################## " #### | | ??????? """% " """ " #### | | ??????? """ " """" #### | | ??????? """ " " #### | | ???????###########+######X "" " #### | | ???????##### ##### % """"""""#### | | ???????##### [ ##### % " " #### | | ???????? + ############################## | | ????????#### "" ########### ################## | | ????????#### """"w ############################## | | ????????#### """" ############################## | | ????????#### "" ############################## | | ?????????### ############################## | | ?????????### #############################? | | ?????????######+################################?? | | ??????????##### ###############################??? | | ???????????####+##############################???? | | ???????????### ########################?????? | | ????????????## #######################??????? | | ?????????????# ] ######################???????? | | ?????????????? #####################????????? | | ????????????????] ###################??????????? | | ????????????????? ##################???????????? | | ????????????????????###############??????????????? | | ????????????????????????? ??#???????????????????? | | ?????????????????????????????????????????????????? | | ?????????????????????????????????????????????????? | | ?????????????????????????????????????????????????? | | ?????????????????????????????????????????????????? | +----------------------------------------------------+ Best States ------------- Heat Dissipation 162 Coolant Potential 120 Energy Generation 100 Energy Capacity 1050 Matter Stores 425 Matter Capacity 425 Sight Range 23 Robot Scan Range 18 Terrain Scan Density 10 Cloak Strength 4 Power Amplification 40 Additional Mass Support 16 Corruption Containment 12 Armor Coverage 1125 Resistance: KI 50 Resistance: TH 50 Resistance: EX 75 Resistance: EM 50 Resistance: I 50 Resistance: S 50 Resistance: P 50 Point Defense Rating 240 Phase Shifting 20 Evasion (%) 89 Targeting Accuracy 14 Melee Accuracy 8 Target Analysis 8 Core Analysis 8 Recoil Reduction 2 Particle Charging 25 Offensive Hacking 30 Defensive Hacking 25 Item Schematics ----------------- Exp. Shield Generator | -2/Testing | Archive System Shield | -2/Testing | Scanalyzed Cld. Q-thruster | -2/Testing | Archive Exp. Thermal Generator | -2/Testing | Archive Exp. Sensor Array | -2/Testing | Archive Exp. Focal Shield | -2/Testing | Archive Spectral Analyzer | -2/Section 7 | Archive Com. Particle Reactor | -2/Section 7 | Archive Cld. Impulse Thruster | -2/Section 7 | Archive Enh. Armored Medium Treads | -2/Section 7 | Archive Com. Tesla Bomb Launcher | -2/Section 7 | Archive Ragnarok Missile Launcher | -2/Section 7 | Archive Robot Schematics ------------------ B-74 Champion | -2/Testing | Archive T-07 Excavator | -2/Testing | Archive Fabricated ------------ Enh. Quantum Rifle | x2 | -5/Factory | Preloaded Alien Tech Used ----------------- Core Expander Core Reset Matrix Integrated Mediator Core Membrane Navigation Efficiency Matrix Integrity Redistributor Sigix Exoskeleton Sigix Sheargun LRC Matter Compressor LRC Storage Core Regenerator Core Physics Calibrator Achievements -------------- 404 Alien Roots All-out Warlord Anyone Home? Revolutionary Research Turtlemind Challenges ------------ None Game ------ Seed NeutrinoShadingDoomcannon Manual? 0 Play Time 10:05:22 Cumulative 207.3 hours Start 2024.01.08 @ 00:31:36 End 2024.01.10 @ 02:08:23 Sessions 9 Manual Loads 0 Difficulty Rogue Special Mode None Game No. 39 Rogue 39 Adventurer 0 Explorer 0 Win Type - Total 4 Types 2/1/1/0/0/0/0/0/0 Lore% 59 Gallery% 73 Achievement% 65 Wizard Run 0 Options --------- ASCII 0 Keyboard 0 Movement Mouse Keybinds 0 Fullscreen 2 Font 24/Smallcaps Map View 76x50 Tactical HUD 1 Map Filters NONE Filters NONE Steam 1 RUN: bfbd7d3a-3d43-41ce-b4f8-5c24b3dc5f01